{"text_format":"1","workbook":"xlsx","n_sheets":7,"sheets":["Sheet1","Sheet2","報告書","設定","データ","説明とメニュー","褒賞申請都連用"],"not_rendered":{"charts":0,"images":0,"macros":1,"external_links":0,"defined_names":1,"comments":1,"pivot_tables":0},"unopened":[],"bounds":{"document_bytes":16777216,"sheet_cells":100000,"rows_first":2000,"rows_last":500,"rows_between":2000,"halvings":0,"cell_chars":16384,"cell_head_chars":4096},"cells_cut":0,"cells_raw":0,"read":"whole","date_system":"1900"}

{"sheet":"Sheet1","index":0,"n_rows":297,"n_cols":37,"rows_kept":297,"cut":false,"hidden":true,"merged":[[2,24,2,27],[2,8,2,11],[2,12,2,15],[2,16,2,19],[2,20,2,23],[2,2,3,2],[2,7,3,7],[2,3,3,3],[2,4,3,4],[2,5,3,5],[2,6,3,6]]}
[]
[]
[null,null,null,null,null,"ＨＧ","ＨＳ","所属","１回戦",null,null,null,"2回戦",null,null,null,"3回戦",null,null,null,"準決勝前半",null,null,null,"準決勝後半"]
[null,null,null,null,null,null,null,null,"1G","2G","3G","計","4G","5G","6G","計","7G","8G","9G","計","1G","2G","3G","計","4G","5G","6G","計"]
["24","24-A-00140","高橋俊彦",{"$f":"SUM(I5:K5,M5:O5,Q5:S5,U5:W5,Y5:AA5,AC5:AK5)","v":5615},{"$f":"COUNTA(I5:K5,M5:O5,Q5:S5,U5:W5,Y5:AA5,AC5:AK5)","v":23},{"$f":"MAX(I5:K5,M5:O5,Q5:S5,U5:W5,Y5:AA5,AC5:AK5)","v":289},803,"岐阜",279,247,277,803,221,228,278,727,237,257,226,720,289,215,267,771,233,207,236,676,237,279,247,224,237,267,235,192]
["21","21-A-00250","池田康弘",5150,22,289,792,"静岡",205,259,237,701,228,193,214,635,268,235,257,760,257,246,289,792,258,216,248,722,181,227,224,230,258,205,215]
["22","22-J-20037","吉田大祐",5671,24,289,758,"愛知",245,243,223,711,215,259,248,722,212,247,235,694,289,184,247,720,258,223,277,758,227,247,217,224,278,235,217,214,207]
["22","22-A-00215","田村浩也",5190,22,279,739,"愛知",227,246,237,710,245,237,203,685,218,236,268,722,246,179,279,704,237,225,277,739,258,268,224,247,221,174,238]
["18","18-A-00329","渡辺佳嗣",5059,22,280,769,"富山",278,258,233,769,231,280,203,714,247,228,212,687,246,209,245,700,194,227,234,655,223,235,202,203,197,237,237]
["14","14-A-00199","田中政美",5133,22,278,773,"神奈川",266,217,191,674,192,258,232,682,237,215,259,711,223,183,266,672,278,257,238,773,201,227,237,246,237,236,237]
["14","14-A-00485","鶴見亮剛",5057,22,280,740,"神奈川",214,269,247,730,202,236,268,706,215,247,237,699,267,280,193,740,184,222,228,634,259,238,218,159,207,238,229]
["22","22-A-00273","野々山寿光",4976,22,269,770,"愛知",203,236,246,685,200,199,227,626,257,243,215,715,239,238,224,701,269,243,258,770,182,215,208,194,205,247,228]
["11","11-A-00154","原田　優",5032,22,265,762,"埼玉",233,254,259,746,174,204,228,606,201,258,237,696,258,258,246,762,193,265,222,680,217,207,248,210,214,233,213]
["22","22-A-00146","田中　亨",4818,22,300,790,"愛知",224,245,256,725,224,209,216,649,234,257,183,674,278,300,212,790,205,204,226,635,205,162,204,162,235,172,205]
["10","10-J-20029","福田尊仁",5059,22,279,722,"群馬",257,235,213,705,226,238,202,666,270,216,197,683,202,225,238,665,279,206,237,722,238,215,247,214,248,248,208]
["21","21-A-00113","小柳靖士",5294,23,258,720,"静岡",226,224,225,675,226,200,258,684,198,247,226,671,238,247,235,720,204,237,237,678,246,255,194,213,254,246,258,200]
["53","53-U-10021","今野裕貴",3402,15,280,707,"学連",227,224,228,679,257,193,248,698,242,233,191,666,203,235,214,652,280,226,201,707]
["21","21-C-00023","石島哲也",3392,15,258,772,"静岡",187,257,216,660,258,256,258,772,180,242,235,657,237,205,248,690,220,192,201,613]
["40","40-A-01068","和田翔吾",3390,15,280,704,"福岡",202,226,275,703,267,214,206,687,247,181,276,704,202,217,213,632,160,280,224,664]
["13","13-A-00891","山下知且",3390,15,266,730,"東京",259,244,227,730,256,238,196,690,266,182,207,655,247,219,215,681,201,206,227,634]
["04","04-A-00248","早坂友伸",3377,15,265,691,"宮城",246,216,223,685,218,259,214,691,202,233,227,662,265,184,211,660,236,236,207,679]
["40","40-A-00028","政時由尚",3371,15,278,729,"福岡",269,234,216,719,226,278,225,729,217,217,237,671,193,249,192,634,236,191,191,618]
["23","23-C-00002","小林剛美",3358,15,269,741,"三重",222,225,205,652,223,184,228,635,269,226,246,741,190,211,234,635,210,221,264,695]
["51","51-U-03036","小濱和音",3356,15,276,738,"学連",183,265,227,675,217,215,258,690,276,223,239,738,245,181,247,673,172,209,199,580]
["11","11-A-00426","幸地俊輔",3355,15,278,740,"埼玉",214,256,246,716,224,222,258,704,213,192,174,579,278,223,239,740,212,224,180,616]
["24","24-A-00002","吉村直人",3349,15,300,720,"岐阜",235,258,224,717,237,228,181,646,181,239,227,647,237,203,179,619,237,300,183,720]
["19","19-C-00041","渡辺元造",3348,15,269,760,"石川",269,257,234,760,211,185,215,611,217,206,217,640,226,224,228,678,268,228,163,659]
["06","06-H-01072","越後拓真",3344,15,267,722,"山形",256,199,267,722,213,213,224,650,237,192,205,634,227,189,225,641,245,215,237,697]
["04","04-A-00354","鈴木大介",3341,15,279,728,"宮城",216,236,222,674,279,180,269,728,216,234,215,665,193,208,237,638,218,217,201,636]
["25","25-A-00163","島本昭宏",3335,15,257,704,"滋賀",233,213,194,640,199,229,257,685,255,236,213,704,242,226,225,693,199,191,223,613]
["14","14-A-00462","佐々木智之",3331,15,258,712,"神奈川",249,214,206,669,223,214,211,648,233,221,258,712,205,224,222,651,213,212,226,651]
["13","13-C-00134","田倉　稔",3329,15,279,747,"東京",253,201,206,660,215,216,203,634,279,223,245,747,194,197,208,599,227,225,237,689]
["08","08-A-00159","植竹　裕",3326,15,279,766,"茨城",259,279,228,766,233,236,194,663,224,204,212,640,235,237,202,674,170,220,193,583]
["","","山中　涼",3317,15,279,738,"学連",235,279,224,738,175,213,269,657,243,216,196,655,212,258,217,687,178,213,189,580]
["40","40-A-01007","川添奨太",3311,15,257,677,"福岡",204,257,206,667,212,224,225,661,219,247,211,677,227,186,233,646,225,201,234,660]
["46","46-A-00018","坂口喜善",3304,15,257,674,"鹿児島",220,235,218,673,216,222,207,645,248,223,203,674,182,226,257,665,214,247,186,647]
["13","13-A-00525","富山幸雄",3304,15,276,695,"東京",237,222,213,672,230,276,168,674,193,246,256,695,211,184,202,597,235,230,201,666]
["11","11-J-30026","塚越翔太",3294,15,258,763,"埼玉",258,248,257,763,212,204,215,631,217,235,234,686,220,236,199,655,193,194,172,559]
["04","04-A-00011","手島利行",3273,15,257,689,"宮城",227,191,246,664,194,193,256,643,227,215,247,689,222,142,225,589,248,257,183,688]
["54","54-U-04054","牧　雅明",3124,15,268,716,"学連",217,221,247,685,218,171,210,599,225,268,223,716,159,181,182,522,223,157,222,602]
["28","28-J-20064","平岡勇人",1992,9,248,700,"兵庫",237,244,170,651,205,247,248,700,213,215,213,641]
["14","14-A-00510","安岡　武",1992,9,257,709,"神奈川",238,225,246,709,189,166,257,612,223,246,202,671]
["45","45-A-00303","野崎俊哉",1991,9,267,678,"宮崎",225,230,214,669,150,227,267,644,196,215,267,678]
["13","13-A-00006","大塚鷹美",1991,9,247,703,"東京",194,245,246,685,247,244,212,703,183,214,206,603]
["55","55-U-06014","大下純矢",1990,9,289,805,"学連",224,180,199,603,201,200,181,582,289,278,238,805]
["22","22-A-00488","大月光浩",1988,9,248,663,"愛知",233,248,181,662,225,235,203,663,247,221,195,663]
["23","23-A-00010","伊藤嘉彦",1985,9,258,674,"三重",237,224,213,674,201,258,194,653,227,184,247,658]
["22","22-C-00045","宮次良典",1983,9,247,686,"愛知",207,246,224,677,201,243,176,620,235,247,204,686]
["07","07-J-20005","遠藤充朗",1983,9,244,696,"福島",229,218,213,660,244,237,215,696,204,238,185,627]
["22","22-C-00116","日比正裕",1983,9,268,726,"愛知",172,224,222,618,185,216,238,639,268,217,241,726]
["26","26-A-00439","播本雄輔",1973,9,268,728,"京都",204,268,256,728,215,247,201,663,178,182,222,582]
["54","54-U-04037","中川友太",1971,9,258,731,"学連",226,247,258,731,190,233,203,626,226,185,203,614]
["14","14-A-00076","川島　徹",1970,9,238,694,"神奈川",237,238,213,688,182,207,199,588,236,225,233,694]
["01","01-A-00329","松田和郎",1969,9,288,703,"北海道",204,230,211,645,288,225,190,703,214,223,184,621]
["19","19-C-00402","大西　裕",1965,9,258,687,"石川",161,174,258,593,248,202,235,685,215,247,225,687]
["26","26-C-00023","堀　泰之",1963,9,279,700,"京都",248,248,204,700,191,206,176,573,279,197,214,690]
["15","15-C-00011","長田哲也",1963,9,270,740,"山梨",234,215,179,628,213,270,257,740,198,174,223,595]
["27","27-J-20056","石原隼人",1962,9,256,688,"大阪",229,194,256,679,208,247,233,688,203,190,202,595]
["34","34-A-00359","桒田幸宗",1960,9,270,740,"広島",270,227,243,740,194,180,190,564,247,225,184,656]
["01","01-A-00364","山井　徹",1959,9,235,657,"北海道",226,232,193,651,226,212,213,651,224,235,198,657]
["25","25-C-00063","中村　尚",1956,9,279,676,"滋賀",279,183,214,676,235,170,206,611,201,233,235,669]
["32","32-A-00049","吉田賢治",1951,9,259,706,"島根",199,248,259,706,205,177,205,587,203,247,208,658]
["53","53-U-10016","渡辺雄也",1948,9,279,705,"学連",279,190,236,705,224,181,202,607,225,219,192,636]
["13","13-A-01198","田中一成",1946,9,255,667,"東京",195,234,198,627,255,186,226,667,213,224,215,652]
["38","38-A-00136","小野年明",1946,9,278,675,"愛媛",185,258,213,656,190,244,181,615,184,278,213,675]
["14","14-H-03015","稲垣　翔",1945,9,236,675,"神奈川",214,200,225,639,225,227,179,631,236,236,203,675]
["22","22-C-00049","夏目佳功",1943,9,266,692,"愛知",266,220,206,692,191,196,203,590,243,214,204,661]
["53","53-U-10015","濵田克則",1942,9,238,669,"学連",205,220,223,648,227,195,203,625,227,238,204,669]
["","","谷合貴志",{"$f":"SUM(I69:K69,M69:O69,Q69:S69,U69:W69,Y69:AA69,AC69:AK69)","v":1940},{"$f":"COUNTA(I69:K69,M69:O69,Q69:S69,U69:W69,Y69:AA69,AC69:AK69)","v":9},{"$f":"MAX(I69:K69,M69:O69,Q69:S69,U69:W69,Y69:AA69,AC69:AK69)","v":247},670,"神奈川",240,195,168,603,198,247,225,670,241,215,211,667]
["15","15-A-00143","石川和樹",1940,9,290,723,"山梨",218,215,290,723,190,212,201,603,203,224,187,614]
["08","08-J-20023","山本優介",1935,9,255,721,"茨城",234,247,228,709,163,184,158,505,212,255,254,721]
["14","14-H-03020","大谷義紀",1932,9,259,710,"神奈川",259,245,206,710,235,215,194,644,206,171,201,578]
["24","24-H-01005","山川尚晴",1931,9,268,684,"岐阜",183,227,233,643,196,214,194,604,268,195,221,684]
["13","13-C-00405","越後裕哉",1930,9,265,676,"東京",226,265,185,676,228,187,192,607,230,212,205,647]
["26","26-A-00143","北川一幸",1927,9,274,651,"京都",246,179,226,651,182,274,180,636,179,214,247,640]
["30","30-A-00011","西田一善",1927,9,246,661,"和歌山",239,205,192,636,170,245,215,630,228,246,187,661]
["24","24-A-00084","清水敦博",1925,9,277,694,"岐阜",214,203,277,694,190,201,174,565,223,227,216,666]
["22","22-C-00026","小林　浩",1924,9,263,702,"愛知",214,208,182,604,235,263,204,702,202,189,227,618]
["43","43-C-00080","中村太亮",1919,9,256,697,"熊本",199,212,217,628,199,242,256,697,169,226,199,594]
["06","06-A-00158","相田祐樹",1917,9,248,656,"山形",230,244,169,643,181,221,216,618,184,248,224,656]
["39","39-A-00030","野村佳弘",1916,9,279,684,"高知",235,171,201,607,199,213,213,625,222,279,183,684]
["04","04-A-00059","高橋　健",1916,9,278,729,"宮城",178,223,224,625,188,217,157,562,238,213,278,729]
["55","55-U-01029","河崎良太",1905,9,247,686,"学連",223,216,247,686,225,224,204,653,160,206,200,566]
["52","52-U-10062","小原央士",1897,9,254,668,"学連",190,254,224,668,184,202,192,578,225,236,190,651]
["27","27-A-00323","西田安男",1896,9,234,639,"大阪",222,234,183,639,212,208,215,635,225,211,186,622]
["01","01-C-00027","滝本宗彦",1896,9,226,649,"北海道",202,225,222,649,224,198,193,615,226,192,214,632]
["16","16-A-00207","板垣博志",1896,9,234,667,"新潟",190,213,199,602,211,222,234,667,194,204,229,627]
["21","21-C-00053","遠藤金龍",1896,9,268,698,"静岡",193,237,216,646,268,224,206,698,145,194,213,552]
["26","26-A-00158","平岡修一",1895,9,247,665,"京都",192,183,211,586,213,247,205,665,202,206,236,644]
["14","14-C-00205","中平　遵",1894,9,226,645,"神奈川",188,202,217,607,193,223,226,642,218,223,204,645]
["27","27-A-00490","武本真明",1894,9,236,690,"大阪",194,190,207,591,183,236,194,613,226,236,228,690]
["27","27-A-00180","野口光生",1892,9,230,633,"大阪",196,230,203,629,211,194,225,630,227,203,203,633]
["40","40-C-00007","岡崎敏彦",1890,9,243,656,"福岡",221,213,222,656,243,179,204,626,215,205,188,608]
["06","06-A-00210","斎藤孝志",1889,9,239,645,"山形",239,217,189,645,215,223,205,643,223,178,200,601]
["20","20-A-00104","吉田　満",1885,9,248,652,"福井",193,236,169,598,201,248,186,635,228,202,222,652]
["24","24-A-00003","宮川澄雄",1885,9,239,668,"岐阜",239,213,216,668,151,201,225,577,203,223,214,640]
["54","54-U-04061","宮内康好",1884,9,258,702,"学連",258,207,237,702,182,213,207,602,207,203,170,580]
["53","53-U-10007","上床雅樹",1882,9,247,668,"学連",225,178,179,582,225,247,196,668,194,193,245,632]
["47","47-J-20008","長嶺将哉",1881,9,268,680,"沖縄",161,234,218,613,225,198,165,588,211,268,201,680]
["54","54-U-04060","正門英晃",1880,9,236,693,"学連",236,236,221,693,195,181,170,546,235,179,227,641]
["11","11-A-00050","山中將吉",1879,9,258,668,"埼玉",207,183,159,549,246,199,217,662,153,258,257,668]
["07","07-A-00007","伊藤　丈",1877,9,257,670,"福島",223,190,257,670,205,171,202,578,191,224,214,629]
["30","30-A-00035","山口厚司",1876,9,225,644,"和歌山",207,223,214,644,224,225,178,627,205,207,193,605]
["36","36-A-00025","植田秀信",1875,9,239,640,"香川",236,203,201,640,212,163,225,600,197,199,239,635]
["12","12-H-01005","吉野貴宣",1874,9,247,683,"千葉",221,176,235,632,211,179,169,559,235,247,201,683]
["14","14-C-00210","清水寿之",1870,9,257,686,"神奈川",183,224,175,582,212,199,191,602,257,238,191,686]
["12","12-A-00005","四釜邦雄",1868,9,247,643,"千葉",195,193,223,611,197,215,202,614,207,189,247,643]
["13","13-H-04015","伊東裕章",1865,9,237,670,"東京",225,237,208,670,193,207,195,595,202,216,182,600]
["22","22-A-00393","杉山光良",1861,9,267,659,"愛知",214,228,217,659,194,267,182,643,200,175,184,559]
["54","54-U-10036","山下周作",1859,9,238,641,"学連",201,202,238,641,177,208,201,586,223,201,208,632]
["14","14-C-00207","菅野紀夫",1859,9,247,642,"神奈川",201,236,205,642,192,174,247,613,196,169,239,604]
["13","13-A-00662","丸尾　豊",1854,9,258,650,"東京",199,203,248,650,258,180,158,596,193,213,202,608]
["13","13-A-01197","粕谷和義",1853,9,236,653,"東京",202,236,215,653,187,201,188,576,167,234,223,624]
["01","01-C-00058","岡田雅弘",1853,9,265,661,"北海道",232,202,227,661,167,202,170,539,265,204,184,653]
["32","32-A-00013","佐藤智之",1852,9,245,645,"島根",213,217,215,645,169,245,222,636,184,171,216,571]
["39","39-C-00002","別役壽章",1849,9,236,654,"高知",227,236,191,654,195,185,223,603,194,207,191,592]
["21","21-A-00333","星野正浩",1846,9,279,660,"静岡",156,279,225,660,191,202,163,556,213,212,205,630]
["35","35-A-00298","濵川正光",1844,9,245,641,"山口",205,208,210,623,178,176,226,580,185,211,245,641]
["29","29-J-20001","堤　祐樹",1840,9,228,640,"奈良",216,195,227,638,225,165,172,562,228,200,212,640]
["33","33-J-20031","守屋雄斗",1838,9,246,639,"岡山",188,210,216,614,181,246,158,585,215,208,216,639]
["15","15-A-00144","沖村　孝",1835,9,235,642,"山梨",235,162,205,602,227,216,148,591,216,219,207,642]
["44","44-J-20006","大秋　稜",1834,9,237,693,"大分",237,220,236,693,218,223,186,627,164,188,162,514]
["56","56-U-03029","佐伯元貴",1833,9,230,640,"学連",213,209,215,637,210,200,230,640,180,205,171,556]
["40","40-A-01020","四宮佑規",1832,9,235,671,"福岡",210,235,213,658,162,161,180,503,225,224,222,671]
["14","14-A-00280","杉崎　隆",1831,9,231,643,"神奈川",185,157,203,545,231,188,224,643,215,203,225,643]
["14","14-A-00094","池田大城",1830,9,266,716,"神奈川",245,205,266,716,184,172,142,498,207,204,205,616]
["38","38-A-00166","高木和夫",1829,9,266,654,"愛媛",153,266,235,654,176,145,214,535,226,187,227,640]
["16","16-A-00201","谷口裕臣",1827,9,278,655,"新潟",188,189,278,655,223,187,159,569,201,190,212,603]
["14","14-C-00206","広津守人",1823,9,225,621,"神奈川",183,225,213,621,163,209,224,596,194,208,204,606]
["","","大塚裕二",1822,9,228,644,"学連",222,228,194,644,202,223,205,630,148,222,178,548]
["13","13-A-00582","新井英郎",1820,9,257,659,"東京",257,190,212,659,142,189,254,585,202,191,183,576]
["03","03-J-20018","菅原修明",1817,9,255,615,"岩手",255,203,154,612,209,236,170,615,169,176,245,590]
["26","26-C-00178","高橋　弘",{"$f":"SUM(I133:K133,M133:O133,Q133:S133,U133:W133,Y133:AA133,AC133:AK133)","v":1814},{"$f":"COUNTA(I133:K133,M133:O133,Q133:S133,U133:W133,Y133:AA133,AC133:AK133)","v":9},{"$f":"MAX(I133:K133,M133:O133,Q133:S133,U133:W133,Y133:AA133,AC133:AK133)","v":233},644,"京都",233,186,225,644,189,227,184,600,205,178,187,570]
["25","25-A-00307","上手吉広",1813,9,226,626,"京都",213,197,216,626,182,190,205,577,188,226,196,610]
["44","44-A-00067","緒方　正",1812,9,226,622,"大分",211,185,226,622,169,215,213,597,207,180,206,593]
["27","27-J-30028","髙田浩規",1812,9,266,650,"大阪",218,224,183,625,173,190,174,537,266,178,206,650]
["10","10-A-00294","富沢　進",1812,9,236,676,"群馬",235,236,205,676,179,181,193,553,218,202,163,583]
["31","31-C-00009","下石直弘",1811,9,256,659,"鳥取",192,192,173,557,233,180,182,595,256,168,235,659]
["40","40-H-01010","升水祐介",1810,9,258,660,"福岡",205,258,197,660,208,170,202,580,201,171,198,570]
["47","47-A-00639","高良宏也",1804,9,278,633,"沖縄",175,224,211,610,278,189,166,633,210,160,191,561]
["14","14-C-00125","川田光一",1798,9,248,634,"神奈川",214,248,172,634,192,192,204,588,179,183,214,576]
["40","40-C-00001","四宮和裕",1789,9,224,609,"福岡",224,188,190,602,191,223,195,609,172,215,191,578]
["28","28-A-00021","西山勝俊",1787,9,255,639,"兵庫",225,180,203,608,185,183,172,540,186,198,255,639]
["02","02-A-00059","花田正史",1787,9,236,687,"青森",236,223,228,687,161,182,206,549,171,192,188,551]
["29","29-A-00010","松本勝治",1782,9,234,652,"奈良",205,234,213,652,168,174,191,533,203,166,228,597]
["19","19-A-00222","前田知一",1781,9,236,615,"石川",207,182,226,615,206,191,204,601,236,155,174,565]
["40","40-A-00278","伊藤　博",1777,9,221,629,"福岡",207,204,218,629,159,199,180,538,221,206,183,610]
["26","26-A-00168","井爪敬二",1776,9,217,605,"京都",196,212,197,605,214,157,217,588,169,209,205,583]
["19","19-A-00510","北村祐樹",1775,9,256,654,"石川",181,177,203,561,168,178,214,560,208,190,256,654]
["04","04-C-00062","原　浩二",1772,9,227,606,"宮城",226,170,210,606,187,176,212,575,227,162,202,591]
["47","47-J-30011","比屋根徳人",1771,9,247,623,"沖縄",166,235,222,623,164,216,180,560,171,247,170,588]
["40","40-H-02021","植田将之",1769,9,231,647,"福岡",208,231,208,647,176,149,172,497,223,226,176,625]
["42","42-A-00223","西納光治",1753,9,254,662,"長崎",204,170,132,506,204,225,233,662,169,254,162,585]
["40","40-A-00971","馬場　豊",1749,9,226,612,"福岡",178,199,187,564,195,226,191,612,214,189,170,573]
["05","05-A-00175","今村博史",1742,9,246,655,"秋田",180,128,199,507,210,183,187,580,246,170,239,655]
["22","22-C-00048","加藤　勝",1735,9,216,603,"愛知",201,187,215,603,162,216,185,563,183,190,196,569]
["21","21-C-00014","笹木　進",1721,9,238,636,"静岡",206,238,192,636,214,208,158,580,203,151,151,505]
["56","56-U-03024","長友龍太",1718,9,214,628,"学連",214,202,212,628,157,166,185,508,194,203,185,582]
["14","14-C-00275","小泉　寿",1715,9,238,651,"神奈川",179,174,238,591,184,132,157,473,216,223,212,651]
["14","14-H-03021","渡部智也",1708,9,223,576,"神奈川",174,204,191,569,222,172,169,563,223,200,153,576]
["14","14-C-00129","村上悦男",1695,9,245,650,"神奈川",184,224,180,588,147,149,161,457,213,192,245,650]
["21","21-C-00020","鈴木孝政",1693,9,227,597,"静岡",212,157,174,543,180,159,214,553,203,227,167,597]
["17","17-A-00085","中島建治",1692,9,214,596,"長野",184,156,213,553,161,190,192,543,214,207,175,596]
["40","40-J-30020","小山田晃貴",1691,9,234,595,"福岡",185,152,170,507,196,159,234,589,212,183,200,595]
["40","40-A-00275","篠原　武",1672,9,215,622,"福岡",171,163,197,531,215,214,193,622,153,179,187,519]
["17","17-A-00204","加藤勇雄",1665,9,218,589,"長野",218,168,192,578,173,161,164,498,197,200,192,589]
["22","22-C-00130","川口浩樹",1665,9,225,616,"愛知",145,225,223,593,162,147,147,456,212,191,213,616]
["07","07-A-00194","阿曽敏男",1632,9,200,583,"福島",192,191,200,583,192,173,167,532,179,157,181,517]
["24","24-A-00198","宮嶋　功",1549,9,211,551,"岐阜",159,149,177,485,211,141,161,513,177,193,181,551]
["22","22-A-00377","森嶋昭年",1539,9,201,534,"愛知",166,183,185,534,168,155,151,474,158,172,201,531]
["06","06-A-00201","石山　弘",1454,9,178,507,"山形",166,159,163,488,159,149,151,459,158,171,178,507]
["21","21-A-00120","片井文乃",5299,23,278,700,"静岡",256,205,217,678,266,241,175,682,214,247,217,678,200,278,190,668,236,248,216,700,211,248,243,223,239,234,258,237]
["01","01-A-00030","松田　悠",5081,23,268,694,"北海道",214,225,183,622,222,226,211,659,246,224,224,694,237,221,221,679,214,205,218,637,229,268,228,189,221,266,206,183]
["14","14-A-00554","山田弥佳",4859,22,279,713,"神奈川",182,223,225,630,224,245,184,653,181,279,137,597,226,245,242,713,234,214,233,681,227,268,247,279,182,169,213]
["11","11-J-30022","大嶋有香",5220,24,290,730,"埼玉",214,226,290,730,217,191,205,613,202,202,212,616,208,240,179,627,202,249,236,687,236,228,196,236,204,247,193,214,193]
["07","07-A-00169","志賀章子",4747,22,287,731,"福島",257,198,200,655,167,287,215,669,229,223,279,731,207,192,238,637,189,182,196,567,212,211,167,248,200,224,226]
["40","40-A-00141","池田亜美",4601,22,259,691,"福岡",197,216,222,635,249,214,228,691,259,178,194,631,217,208,244,669,192,223,205,620,192,173,203,221,173,207,186]
["12","12-H-01006","向谷美咲",4779,22,267,728,"千葉",202,233,193,628,267,217,244,728,183,187,205,575,207,229,166,602,218,244,236,698,236,267,228,187,202,226,202]
["54","54-U-04059","菅野沙織",4723,22,259,696,"学連",192,192,209,593,235,224,212,671,195,222,214,631,221,259,216,696,221,190,226,637,228,191,249,189,230,210,198]
["40","40-A-00238","渡邊美和",4653,22,256,716,"福岡",209,205,192,606,200,225,236,661,246,181,190,617,233,204,184,621,235,225,256,716,210,206,181,176,227,220,212]
["47","47-A-00047","石嶺可奈子",4648,22,259,719,"沖縄",213,236,181,630,184,237,246,667,193,215,201,609,259,247,213,719,202,224,165,591,244,192,172,197,183,207,237]
["22","22-C-00051","遠地美和",4781,22,257,716,"愛知",200,205,194,599,203,204,216,623,205,255,256,716,217,217,194,628,216,228,204,648,223,246,215,193,257,186,247]
["53","53-U-10012","高橋美沙",4563,22,256,744,"学連",255,246,243,744,191,220,190,601,182,188,201,571,256,213,256,725,186,204,172,562,128,237,203,216,172,181,223]
["54","54-U-04067","竹俣茉耶",3186,15,268,691,"学連",243,226,222,691,189,191,178,558,233,144,238,615,177,254,200,631,189,234,268,691]
["27","27-A-00572","丹生愛子",3176,15,247,678,"大阪",212,203,247,662,189,192,223,604,201,203,200,604,218,225,235,678,204,213,211,628]
["01","01-J-20030","本間亜紗実",3154,15,257,707,"北海道",173,228,237,638,234,257,216,707,162,186,201,549,236,208,206,650,224,171,215,610]
["23","23-H-02027","吉田　彩",3154,15,265,706,"三重",194,189,161,544,221,205,203,629,246,265,195,706,169,247,191,607,211,222,235,668]
["06","06-A-00312","大石奈緒",3143,15,248,726,"山形",236,245,245,726,200,192,191,583,212,156,216,584,159,214,197,570,218,248,214,680]
["04","04-A-00160","河原麻衣",3123,15,235,678,"宮城",220,235,223,678,218,211,226,655,204,193,182,579,211,179,187,577,214,198,222,634]
["14","14-H-03022","奥　由佳利",3116,15,235,671,"神奈川",192,179,192,563,195,225,212,632,235,226,210,671,180,225,234,639,225,186,200,611]
["54","54-U-04045","竹内いづみ",3112,15,257,655,"学連",172,203,215,590,188,210,257,655,218,204,201,623,183,236,181,600,216,193,235,644]
["15","15-A-00150","花形千恵",3083,15,246,693,"山梨",191,162,245,598,203,246,244,693,218,171,188,577,195,225,155,575,182,237,221,640]
["22","22-A-00473","吉武あきな",3080,15,259,677,"愛知",195,246,236,677,259,193,213,665,182,167,193,542,170,224,171,565,201,204,226,631]
["22","22-A-00281","鈴木道恵",3052,15,266,688,"愛知",266,207,215,688,193,202,181,576,210,197,195,602,176,170,192,538,223,179,246,648]
["26","26-A-00153","酒井多鶴",3011,15,260,691,"京都",159,260,191,610,233,244,214,691,204,188,169,561,176,201,154,531,213,178,227,618]
["04","04-A-00232","河原麻由",1854,9,235,669,"宮城",198,191,202,591,207,227,235,669,203,188,203,594]
["22","22-A-00516","宮城鈴菜",{"$f":"SUM(I197:K197,M197:O197,Q197:S197,U197:W197,Y197:AA197,AC197:AK197)","v":1853},{"$f":"COUNTA(I197:K197,M197:O197,Q197:S197,U197:W197,Y197:AA197,AC197:AK197)","v":9},{"$f":"MAX(I197:K197,M197:O197,Q197:S197,U197:W197,Y197:AA197,AC197:AK197)","v":236},683,"愛知",210,192,176,578,236,211,236,683,201,213,178,592]
["15","15-J-20003","田中いづみ",1853,9,254,717,"山梨",155,225,176,556,254,225,238,717,194,196,190,580]
["26","26-J-20019","井上三菜子",1849,9,289,678,"京都",289,156,233,678,215,197,175,587,183,169,232,584]
["28","28-A-00313","東坂和美",1844,9,246,627,"兵庫",211,211,183,605,246,208,173,627,214,191,207,612]
["28","28-A-00301","漣かおる",1842,9,228,635,"兵庫",183,226,224,633,203,228,204,635,192,203,179,574]
["44","44-A-00086","進　博美",1841,9,243,617,"大分",231,214,162,607,210,239,168,617,243,193,181,617]
["30","30-A-00037","垣添巳奈",1840,9,246,661,"和歌山",171,160,193,524,216,227,212,655,212,203,246,661]
["53","53-U-10021","小泉奈津美",1831,9,245,645,"学連",182,182,233,597,171,245,173,589,225,226,194,645]
["14","14-H-03023","佐藤悠里",1831,9,237,667,"神奈川",237,201,229,667,211,172,225,608,188,183,185,556]
["21","21-A-00169","市川千津子",1830,9,256,721,"静岡",156,186,188,530,173,193,213,579,221,244,256,721]
["13","13-A-00406","長久保華世",1827,9,267,701,"東京",234,200,267,701,159,189,200,548,235,182,161,578]
["40","40-A-00011","矢野純子",1825,9,259,673,"福岡",192,222,259,673,203,222,171,596,173,201,182,556]
["52","52-U-10025","長谷川敦美",1824,9,223,625,"学連",203,215,199,617,184,193,205,582,220,223,182,625]
["12","12-A-00457","張ヶ谷順子",1820,9,228,640,"千葉",228,212,200,640,202,182,183,567,182,216,215,613]
["07","07-C-00013","鈴木英子",1816,9,239,660,"福島",239,221,200,660,180,203,174,557,196,207,196,599]
["21","21-A-00170","中野麻希",1813,9,225,647,"静岡",202,192,202,596,204,218,225,647,164,191,215,570]
["45","45-A-00280","前屋瑠美",1813,9,254,662,"宮崎",202,179,190,571,184,190,206,580,210,198,254,662]
["22","22-A-00144","加藤二志子",1811,9,249,644,"愛知",249,182,213,644,172,201,180,553,210,180,224,614]
["04","04-A-00191","桑原のぶ",1809,9,226,632,"宮城",205,190,226,621,183,183,190,556,224,216,192,632]
["11","11-A-00200","大丸谷　香",1807,9,248,640,"埼玉",212,200,181,593,195,198,181,574,190,202,248,640]
["","","中野麻理子",1805,9,221,622,"福岡",221,160,213,594,217,191,181,589,195,215,212,622]
["27","27-A-00416","平野智美",1795,9,246,611,"大阪",199,203,192,594,197,200,214,611,198,246,146,590]
["14","14-A-00212","郡司加代子",1793,9,245,631,"神奈川",179,192,171,542,236,195,189,620,188,198,245,631]
["27","27-A-00633","山東美夕紀",1790,9,225,622,"大阪",206,178,194,578,225,192,173,590,209,220,193,622]
["","","伊藤友里",1790,9,253,683,"学連",222,253,208,683,173,207,193,573,178,188,168,534]
["15","15-A-00232","佐藤まさみ",1789,9,238,618,"山梨",224,201,192,617,238,215,165,618,182,193,179,554]
["19","19-A-00518","北村光彩",1787,9,224,629,"石川",194,223,139,556,178,224,200,602,215,201,213,629]
["40","40-A-00552","川口麻衣",1786,9,227,620,"福岡",181,227,187,595,203,217,200,620,191,186,194,571]
["28","28-A-00200","山名文恵",1781,9,236,628,"兵庫",185,214,158,557,191,201,236,628,218,164,214,596]
["28","28-A-00422","竹原三貴",1773,9,223,595,"兵庫",183,182,223,588,195,195,205,595,216,183,191,590]
["14","14-C-00048","河上光子",1772,9,239,625,"神奈川",173,185,200,558,192,206,191,589,239,193,193,625]
["22","22-A-00495","伊藤美絵",1770,9,234,606,"愛知",199,191,178,568,213,195,188,596,148,234,224,606]
["03","03-A-00128","阿部暁美",1770,9,260,644,"岩手",184,253,169,606,192,192,260,644,173,167,180,520]
["18","18-A-00187","古岡美保子",1764,9,254,648,"富山",198,196,254,648,192,195,180,567,176,185,188,549]
["46","46-A-00071","鬼塚優子",1763,9,235,648,"鹿児島",204,235,209,648,182,212,203,597,174,185,159,518]
["39","39-A-00095","岡﨑まき",1758,9,226,623,"高知",213,184,226,623,212,169,186,567,187,191,190,568]
["28","28-A-00372","堀内　綾",1756,9,226,620,"兵庫",192,226,167,585,224,181,215,620,181,148,222,551]
["07","07-A-00152","石塚香織",1755,9,247,670,"福島",178,201,146,525,202,247,221,670,172,213,175,560]
["10","10-A-00098","園部恵理",1751,9,253,639,"群馬",193,203,175,571,199,187,253,639,233,150,158,541]
["39","39-A-00022","林　沢子",1748,9,225,621,"高知",225,180,174,579,170,189,189,548,197,213,211,621]
["16","16-A-00224","塚田優子",1748,9,238,625,"新潟",193,212,220,625,133,194,182,509,230,146,238,614]
["14","14-A-00354","萩原加奈子",1746,9,240,632,"神奈川",224,215,178,617,207,185,240,632,180,155,162,497]
["26","26-A-00123","小池和美",1740,9,235,598,"京都",201,208,181,590,191,172,235,598,177,183,192,552]
["24","24-A-00030","松原麻里",1740,9,222,605,"岐阜",192,204,163,559,190,222,193,605,190,182,204,576]
["32","32-A-00108","森山左枝子",1737,9,237,629,"島根",175,173,237,585,216,189,224,629,167,172,184,523]
["47","47-J-20006","濱元美貴恵",1734,9,226,585,"沖縄",200,193,192,585,177,219,173,569,160,194,226,580]
["19","19-A-00063","佐野真紀",1734,9,248,619,"石川",172,186,201,559,222,149,248,619,186,183,187,556]
["08","08-A-00127","檜垣智美",1730,9,223,606,"茨城",182,191,173,546,194,212,172,578,181,202,223,606]
["26","26-J-30019","永広加奈子",1728,9,244,616,"京都",193,203,220,616,171,171,170,512,173,183,244,600]
["","","浅野真唯",1721,9,231,613,"宮城",184,185,200,569,171,231,211,613,167,181,191,539]
["13","13-A-00322","佐藤香津美",1721,9,223,618,"東京",203,223,192,618,213,144,193,550,190,202,161,553]
["43","43-A-00301","福島美帆",1719,9,255,643,"熊本",168,185,171,524,255,210,178,643,183,199,170,552]
["10","10-A-00260","戸塚里恵",1717,9,216,614,"群馬",171,173,189,533,215,183,216,614,163,216,191,570]
["30","30-A-00078","松村佳美",1711,9,235,597,"和歌山",155,143,219,517,182,180,235,597,179,214,204,597]
["03","03-A-00010","久慈順子",1709,9,231,640,"岩手",168,204,169,541,225,231,184,640,160,196,172,528]
["19","19-A-00158","片岡一世",1707,9,215,589,"石川",186,172,204,562,170,204,215,589,185,201,170,556]
["05","05-A-00193","半田彩子",1706,9,244,618,"秋田",152,244,222,618,172,192,202,566,167,191,164,522]
["12","12-J-20046","秋葉絵里香",1705,9,204,593,"千葉",181,182,171,534,203,189,201,593,198,204,176,578]
["07","07-A-00185","蓬田桃子",1703,9,245,617,"福島",171,201,245,617,183,192,164,539,191,183,173,547]
["14","14-A-00277","吉川真弓",1700,9,213,598,"神奈川",205,191,202,598,193,213,191,597,162,174,169,505]
["21","21-C-00085","笹木郁枝",1699,9,226,608,"静岡",217,161,167,545,206,164,176,546,209,226,173,608]
["13","13-A-01146","渋谷美千代",1698,9,204,589,"東京",190,195,204,589,169,201,185,555,194,191,169,554]
["36","36-A-00071","橋本鈴子",1698,9,227,612,"香川",227,171,214,612,187,171,189,547,182,165,192,539]
["18","18-A-00256","犬嶌正子",1691,9,227,600,"富山",150,157,191,498,187,196,210,593,227,185,188,600]
["13","13-A-00815","小西美樹",{"$f":"SUM(I261:K261,M261:O261,Q261:S261,U261:W261,Y261:AA261,AC261:AK261)","v":1689},{"$f":"COUNTA(I261:K261,M261:O261,Q261:S261,U261:W261,Y261:AA261,AC261:AK261)","v":9},{"$f":"MAX(I261:K261,M261:O261,Q261:S261,U261:W261,Y261:AA261,AC261:AK261)","v":226},595,"東京",226,178,170,574,203,203,189,595,176,197,147,520]
["22","22-A-00103","浜元小夜子",1687,9,209,588,"愛知",209,168,189,566,203,206,179,588,159,179,195,533]
["11","11-A-00102","滝沢靖子",1687,9,214,600,"埼玉",157,168,175,500,214,194,192,600,214,162,211,587]
["21","21-A-00370","飯室美和",1677,9,240,624,"静岡",161,173,190,524,181,203,240,624,173,176,180,529]
["34","34-J-20036","川中玲央",1675,9,220,585,"広島",181,205,199,585,220,184,177,581,187,169,153,509]
["12","12-J-30026","箕輪加奈",1674,9,212,603,"千葉",182,183,188,553,151,193,174,518,212,181,210,603]
["11","11-A-00024","西井美由紀",1673,9,205,596,"埼玉",183,193,167,543,204,125,205,534,195,200,201,596]
["23","23-A-00005","柳川穂波",1671,9,208,581,"三重",205,168,208,581,181,198,166,545,172,187,186,545]
["20","20-A-00150","高木則子",1667,9,212,583,"福井",189,192,162,543,178,193,212,583,177,173,191,541]
["01","01-A-00034","岡崎紀代美",1667,9,245,650,"北海道",133,160,190,483,191,174,169,534,180,225,245,650]
["17","17-J-20016","浅田梨奈",1665,9,215,564,"長野",164,185,215,564,184,181,181,546,167,182,206,555]
["14","14-A-00144","緑川絵里子",1664,9,205,568,"神奈川",198,202,153,553,149,203,191,543,205,173,190,568]
["19","19-A-00026","岡沢亜寿砂",1663,9,219,619,"石川",219,187,213,619,181,151,200,532,160,166,186,512]
["42","42-A-00193","山口リカ子",1658,9,212,571,"長崎",179,212,180,571,179,194,180,553,204,158,172,534]
["17","17-A-00176","片倉光子",1658,9,224,625,"長野",177,224,224,625,189,203,215,607,166,134,126,426]
["16","16-A-00084","金子智恵子",1656,9,215,602,"新潟",205,182,215,602,155,169,204,528,192,162,172,526]
["02","02-A-00242","新山沙織",1651,9,202,578,"青森",175,202,201,578,167,197,185,549,180,195,149,524]
["20","20-A-00036","辻　容子",1640,9,199,585,"福井",181,164,192,537,191,199,195,585,167,192,159,518]
["11","11-A-00398","川原路子",1638,9,226,626,"埼玉",215,187,181,583,151,143,135,429,197,226,203,626]
["44","44-A-00077","松谷泉磨",1627,9,237,586,"大分",237,180,169,586,185,175,165,525,170,165,181,516]
["28","28-A-00193","谷川貴美子",1620,9,226,580,"兵庫",172,226,182,580,167,179,171,517,180,185,158,523]
["07","07-J-20017","斉藤あ咲",1597,9,202,550,"福島",167,178,177,522,202,174,174,550,169,173,183,525]
["11","11-A-00379","五十嵐優子",1591,9,226,570,"埼玉",161,174,165,500,134,206,181,521,193,151,226,570]
["22","22-J-30040","松尾星伽",1585,9,205,533,"愛知",168,194,171,533,170,205,156,531,187,173,161,521]
["34","34-C-00042","谷口葉子",1584,9,214,562,"広島",177,161,205,543,138,140,201,479,214,184,164,562]
["31","31-A-00074","坂田和子",1581,9,211,575,"鳥取",166,170,203,539,176,188,211,575,183,148,136,467]
["21","21-A-00284","渡邉久美子",1579,9,195,557,"静岡",171,177,170,518,168,194,195,557,168,148,188,504]
["28","28-A-00239","大村雅美",1577,9,212,595,"兵庫",182,128,162,472,169,165,176,510,180,212,203,595]
["11","11-A-00104","津澤久美",1569,9,213,554,"埼玉",157,153,178,488,182,171,174,527,213,155,186,554]
["47","47-A-00635","佐渡山愛美",1566,9,211,547,"沖縄",154,174,170,498,183,197,141,521,166,211,170,547]
["01","01-A-00029","福島由佳",1552,9,199,554,"北海道",178,161,158,497,177,199,178,554,166,161,174,501]
["21","21-A-00366","杉森み乃り",1552,9,198,556,"静岡",157,198,167,522,195,189,172,556,155,159,160,474]
["13","13-A-00151","熊本美穂",1536,9,192,553,"東京",146,172,172,490,192,170,191,553,188,147,158,493]
["21","21-A-00344","樋口友美",1533,9,216,556,"静岡",199,150,166,515,216,182,158,556,147,154,161,462]
["38","38-A-00051","木下洋子",1501,9,197,528,"愛媛",161,170,197,528,148,156,150,454,186,168,165,519]
["38","38-A-00056","寺本佳子",1500,9,211,522,"愛媛",211,140,171,522,158,170,157,485,139,185,169,493]
["53","53-U-10024","小田切美緒",1448,9,193,552,"学連",156,157,167,480,192,193,167,552,154,135,127,416]

{"sheet":"Sheet2","index":1,"n_rows":293,"n_cols":2,"rows_kept":293,"cut":false,"hidden":true,"merged":[]}
["阿曽敏男","07-A-00194"]
["阿部暁美","03-A-00128"]
["安岡　武","14-A-00510"]
["伊東裕章","13-H-04015"]
["伊藤　丈","07-A-00007"]
["伊藤　博","40-A-00278"]
["伊藤嘉彦","23-A-00010"]
["伊藤美絵","22-A-00495"]
["伊藤友里",""]
["井上三菜子","26-J-20019"]
["井爪敬二","26-A-00168"]
["稲垣　翔","14-H-03015"]
["永広加奈子","26-J-30019"]
["越後拓真","06-H-01072"]
["越後裕哉","13-C-00405"]
["園部恵理","10-A-00098"]
["遠地美和","22-C-00051"]
["遠藤金龍","21-C-00053"]
["遠藤充朗","07-J-20005"]
["奥　由佳利","14-H-03022"]
["岡崎紀代美","01-A-00034"]
["岡崎敏彦","40-C-00007"]
["岡沢亜寿砂","19-A-00026"]
["岡田雅弘","01-C-00058"]
["岡﨑まき","39-A-00095"]
["沖村　孝","15-A-00144"]
["下石直弘","31-C-00009"]
["加藤　勝","22-C-00048"]
["加藤二志子","22-A-00144"]
["加藤勇雄","17-A-00204"]
["夏目佳功","22-C-00049"]
["河原麻衣","04-A-00160"]
["河原麻由","04-A-00232"]
["河崎良太","55-U-01029"]
["河上光子","14-C-00048"]
["花形千恵","15-A-00150"]
["花田正史","02-A-00059"]
["垣添巳奈","30-A-00037"]
["丸尾　豊","13-A-00662"]
["鬼塚優子","46-A-00071"]
["吉川真弓","14-A-00277"]
["吉村直人","24-A-00002"]
["吉田　彩","23-H-02027"]
["吉田　満","20-A-00104"]
["吉田賢治","32-A-00049"]
["吉田大祐","22-J-20037"]
["吉武あきな","22-A-00473"]
["吉野貴宣","12-H-01005"]
["久慈順子","03-A-00010"]
["宮次良典","22-C-00045"]
["宮城鈴菜","22-A-00516"]
["宮川澄雄","24-A-00003"]
["宮嶋　功","24-A-00198"]
["宮内康好","54-U-04061"]
["橋本鈴子","36-A-00071"]
["金子智恵子","16-A-00084"]
["熊本美穂","13-A-00151"]
["桑原のぶ","04-A-00191"]
["郡司加代子","14-A-00212"]
["犬嶌正子","18-A-00256"]
["原　浩二","04-C-00062"]
["原田　優","11-A-00154"]
["古岡美保子","18-A-00187"]
["戸塚里恵","10-A-00260"]
["五十嵐優子","11-A-00379"]
["向谷美咲","12-H-01006"]
["幸地俊輔","11-A-00426"]
["広津守人","14-C-00206"]
["高橋　健","04-A-00059"]
["高橋　弘","26-C-00178"]
["高橋俊彦","24-A-00140"]
["高橋美沙","53-U-10012"]
["高木則子","20-A-00150"]
["高木和夫","38-A-00166"]
["高良宏也","47-A-00639"]
["今村博史","05-A-00175"]
["今野裕貴","53-U-10021"]
["佐々木智之","14-A-00462"]
["佐渡山愛美","47-A-00635"]
["佐藤まさみ","15-A-00232"]
["佐藤香津美","13-A-00322"]
["佐藤智之","32-A-00013"]
["佐藤悠里","14-H-03023"]
["佐伯元貴","56-U-03029"]
["佐野真紀","19-A-00063"]
["斎藤孝志","06-A-00210"]
["坂口喜善","46-A-00018"]
["坂田和子","31-A-00074"]
["笹木　進","21-C-00014"]
["笹木郁枝","21-C-00085"]
["山井　徹","01-A-00364"]
["山下周作","54-U-10036"]
["山下知且","13-A-00891"]
["山口リカ子","42-A-00193"]
["山口厚司","30-A-00035"]
["山川尚晴","24-H-01005"]
["山中　涼",""]
["山中將吉","11-A-00050"]
["山田弥佳","14-A-00554"]
["山東美夕紀","27-A-00633"]
["山本優介","08-J-20023"]
["山名文恵","28-A-00200"]
["四釜邦雄","12-A-00005"]
["四宮佑規","40-A-01020"]
["四宮和裕","40-C-00001"]
["市川千津子","21-A-00169"]
["志賀章子","07-A-00169"]
["寺本佳子","38-A-00056"]
["篠原　武","40-A-00275"]
["守屋雄斗","33-J-20031"]
["手島利行","04-A-00011"]
["酒井多鶴","26-A-00153"]
["秋葉絵里香","12-J-20046"]
["渋谷美千代","13-A-01146"]
["緒方　正","44-A-00067"]
["升水祐介","40-H-01010"]
["小原央士","52-U-10062"]
["小山田晃貴","40-J-30020"]
["小西美樹","13-A-00815"]
["小泉　寿","14-C-00275"]
["小泉奈津美","53-U-10021"]
["小池和美","26-A-00123"]
["小田切美緒","53-U-10024"]
["小野年明","38-A-00136"]
["小柳靖士","21-A-00113"]
["小林　浩","22-C-00026"]
["小林剛美","23-C-00002"]
["小濱和音","51-U-03036"]
["松原麻里","24-A-00030"]
["松村佳美","30-A-00078"]
["松谷泉磨","44-A-00077"]
["松田　悠","01-A-00030"]
["松田和郎","01-A-00329"]
["松尾星伽","22-J-30040"]
["松本勝治","29-A-00010"]
["上手吉広","25-A-00307"]
["上床雅樹","53-U-10007"]
["植竹　裕","08-A-00159"]
["植田秀信","36-A-00025"]
["植田将之","40-H-02021"]
["新井英郎","13-A-00582"]
["新山沙織","02-A-00242"]
["森山左枝子","32-A-00108"]
["森嶋昭年","22-A-00377"]
["進　博美","44-A-00086"]
["杉崎　隆","14-A-00280"]
["杉山光良","22-A-00393"]
["杉森み乃り","21-A-00366"]
["菅原修明","03-J-20018"]
["菅野紀夫","14-C-00207"]
["菅野沙織","54-U-04059"]
["政時由尚","40-A-00028"]
["星野正浩","21-A-00333"]
["正門英晃","54-U-04060"]
["清水寿之","14-C-00210"]
["清水敦博","24-A-00084"]
["西井美由紀","11-A-00024"]
["西山勝俊","28-A-00021"]
["西田安男","27-A-00323"]
["西田一善","30-A-00011"]
["西納光治","42-A-00223"]
["斉藤あ咲","07-J-20017"]
["石原隼人","27-J-20056"]
["石山　弘","06-A-00201"]
["石川和樹","15-A-00143"]
["石塚香織","07-A-00152"]
["石島哲也","21-C-00023"]
["石嶺可奈子","47-A-00047"]
["川原路子","11-A-00398"]
["川口浩樹","22-C-00130"]
["川口麻衣","40-A-00552"]
["川中玲央","34-J-20036"]
["川添奨太","40-A-01007"]
["川田光一","14-C-00125"]
["川島　徹","14-A-00076"]
["浅田梨奈","17-J-20016"]
["浅野真唯",""]
["前屋瑠美","45-A-00280"]
["前田知一","19-A-00222"]
["早坂友伸","04-A-00248"]
["相田祐樹","06-A-00158"]
["村上悦男","14-C-00129"]
["大下純矢","55-U-06014"]
["大丸谷　香","11-A-00200"]
["大月光浩","22-A-00488"]
["大秋　稜","44-J-20006"]
["大西　裕","19-C-00402"]
["大石奈緒","06-A-00312"]
["大村雅美","28-A-00239"]
["大谷義紀","14-H-03020"]
["大塚鷹美","13-A-00006"]
["大塚裕二",""]
["大嶋有香","11-J-30022"]
["滝沢靖子","11-A-00102"]
["滝本宗彦","01-C-00027"]
["谷口裕臣","16-A-00201"]
["谷口葉子","34-C-00042"]
["谷合貴志",""]
["谷川貴美子","28-A-00193"]
["丹生愛子","27-A-00572"]
["池田亜美","40-A-00141"]
["池田康弘","21-A-00250"]
["池田大城","14-A-00094"]
["竹原三貴","28-A-00422"]
["竹内いづみ","54-U-04045"]
["竹俣茉耶","54-U-04067"]
["中川友太","54-U-04037"]
["中村　尚","25-C-00063"]
["中村太亮","43-C-00080"]
["中島建治","17-A-00085"]
["中平　遵","14-C-00205"]
["中野麻希","21-A-00170"]
["中野麻理子",""]
["張ヶ谷順子","12-A-00457"]
["長久保華世","13-A-00406"]
["長谷川敦美","52-U-10025"]
["長田哲也","15-C-00011"]
["長友龍太","56-U-03024"]
["長嶺将哉","47-J-20008"]
["津澤久美","11-A-00104"]
["塚越翔太","11-J-30026"]
["塚田優子","16-A-00224"]
["辻　容子","20-A-00036"]
["鶴見亮剛","14-A-00485"]
["堤　祐樹","29-J-20001"]
["田倉　稔","13-C-00134"]
["田村浩也","22-A-00215"]
["田中　亨","22-A-00146"]
["田中いづみ","15-J-20003"]
["田中一成","13-A-01198"]
["田中政美","14-A-00199"]
["渡部智也","14-H-03021"]
["渡辺佳嗣","18-A-00329"]
["渡辺元造","19-C-00041"]
["渡辺雄也","53-U-10016"]
["渡邊美和","40-A-00238"]
["渡邉久美子","21-A-00284"]
["島本昭宏","25-A-00163"]
["東坂和美","28-A-00313"]
["日比正裕","22-C-00116"]
["播本雄輔","26-A-00439"]
["馬場　豊","40-A-00971"]
["萩原加奈子","14-A-00354"]
["粕谷和義","13-A-01197"]
["半田彩子","05-A-00193"]
["板垣博志","16-A-00207"]
["飯室美和","21-A-00370"]
["比屋根徳人","47-J-30011"]
["樋口友美","21-A-00344"]
["浜元小夜子","22-A-00103"]
["富山幸雄","13-A-00525"]
["富沢　進","10-A-00294"]
["武本真明","27-A-00490"]
["福田尊仁","10-J-20029"]
["福島美帆","43-A-00301"]
["福島由佳","01-A-00029"]
["平岡修一","26-A-00158"]
["平岡勇人","28-J-20064"]
["平野智美","27-A-00416"]
["別役壽章","39-C-00002"]
["片井文乃","21-A-00120"]
["片岡一世","19-A-00158"]
["片倉光子","17-A-00176"]
["蓬田桃子","07-A-00185"]
["北川一幸","26-A-00143"]
["北村光彩","19-A-00518"]
["北村祐樹","19-A-00510"]
["牧　雅明","54-U-04054"]
["堀　泰之","26-C-00023"]
["堀内　綾","28-A-00372"]
["本間亜紗実","01-J-20030"]
["箕輪加奈","12-J-30026"]
["木下洋子","38-A-00051"]
["野口光生","27-A-00180"]
["野崎俊哉","45-A-00303"]
["野村佳弘","39-A-00030"]
["野々山寿光","22-A-00273"]
["矢野純子","40-A-00011"]
["柳川穂波","23-A-00005"]
["緑川絵里子","14-A-00144"]
["林　沢子","39-A-00022"]
["鈴木英子","07-C-00013"]
["鈴木孝政","21-C-00020"]
["鈴木大介","04-A-00354"]
["鈴木道恵","22-A-00281"]
["漣かおる","28-A-00301"]
["和田翔吾","40-A-01068"]
["檜垣智美","08-A-00127"]
["濱元美貴恵","47-J-20006"]
["桒田幸宗","34-A-00359"]
["濵川正光","35-A-00298"]
["濵田克則","53-U-10015"]
["髙田浩規","27-J-30028"]

{"sheet":"報告書","index":2,"n_rows":56,"n_cols":16,"rows_kept":56,"cut":false,"hidden":false,"merged":[[11,2,11,4],[13,4,14,8],[15,4,16,6],[15,11,16,14],[15,8,15,10],[16,8,16,10],[54,11,54,13],[54,14,54,15],[13,15,14,15],[48,9,49,11],[48,12,49,12],[48,13,49,15],[18,8,18,9],[18,11,18,13],[22,8,22,9],[22,11,22,13],[23,8,23,9],[23,11,23,13],[17,11,17,13],[19,11,19,13],[20,11,20,13],[21,11,21,13],[24,11,24,13],[25,11,25,13],[26,8,26,9],[26,11,26,13],[48,7,49,8],[27,11,27,13],[28,5,28,7],[28,8,28,9],[28,11,28,13],[29,5,29,7],[48,6,49,6],[48,5,49,5],[29,11,29,13],[30,8,30,9],[30,11,30,13],[31,5,31,7],[31,8,31,9],[31,11,31,13],[17,2,17,3],[17,8,17,9],[17,5,17,7],[33,2,33,3],[18,2,18,3],[18,5,18,7],[48,2,49,2],[19,5,19,7],[21,5,21,7],[23,5,23,7],[22,5,22,7],[19,8,19,9],[20,5,20,7],[20,8,20,9],[21,8,21,9],[24,5,24,7],[24,8,24,9],[25,5,25,7],[25,8,25,9],[26,5,26,7],[27,5,27,7],[27,8,27,9],[29,8,29,9],[30,5,30,7],[42,1,43,1],[27,1,28,1],[32,1,33,1],[37,1,38,1],[47,1,48,1],[27,2,27,3],[29,2,29,3],[31,2,31,3],[19,2,19,3],[21,2,21,3],[23,2,23,3],[22,1,23,1],[20,2,20,3],[22,2,22,3],[24,2,24,3],[25,2,25,3],[26,2,26,3],[30,2,30,3],[36,2,36,3],[39,2,39,3],[42,2,42,3],[45,2,45,3],[48,3,49,4],[28,2,28,3],[32,2,32,3],[32,5,32,7],[32,8,32,9],[32,11,32,13],[33,5,33,7],[33,8,33,9],[33,11,33,13],[34,2,34,3],[34,5,34,7],[34,8,34,9],[34,11,34,13],[35,2,35,3],[35,5,35,7],[35,8,35,9],[35,11,35,13],[36,5,36,7],[36,8,36,9],[36,11,36,13],[37,2,37,3],[37,5,37,7],[37,8,37,9],[37,11,37,13],[38,2,38,3],[38,5,38,7],[38,8,38,9],[38,11,38,13],[39,5,39,7],[39,8,39,9],[39,11,39,13],[40,2,40,3],[40,5,40,7],[40,8,40,9],[40,11,40,13],[41,2,41,3],[41,5,41,7],[41,8,41,9],[41,11,41,13],[42,5,42,7],[42,8,42,9],[42,11,42,13],[43,2,43,3],[43,5,43,7],[43,8,43,9],[43,11,43,13],[47,2,47,3],[47,5,47,7],[47,8,47,9],[47,11,47,13],[44,2,44,3],[44,5,44,7],[44,8,44,9],[44,11,44,13],[45,5,45,7],[45,8,45,9],[45,11,45,13],[46,2,46,3],[46,5,46,7],[46,8,46,9],[46,11,46,13]]}
[]
[]
[]
[]
[null,null,null,null,null,"J . B 個 人 競 技 記 録 報 告 書"]
[]
[]
[]
[]
[null,null,"下記個人競技記録を報告致します。"]
[]
[null,null,"2024-06-24",null,null,null,null,"113-121"]
[]
[null,null,null,null,"令和6年度 東京都ジュニアボウリング選手権大会",null,null,null,null,null,null,null,null,null,3,3]
[]
[null,null,null,null,"トミコシ高島平ボウル ",null,null,null,"2024-06-23",null,null,"2024-06-24"]
[null,null,null,null,null,null,null,null,"2024-06-23"]
[null,null,"連盟コード",null,"J.B 会員No.","氏　　　　　名",null,null,"ト　ー　タ　ル",null,"ゲーム","Ｈ／Ｇ",null,null,"Ｈ／Ｓ"]
[]
[]
[]
[]
[null,5]
[]
[]
[]
[]
[null,10]
[]
[]
[]
[]
[null,15]
[]
[]
[]
[]
[null,20]
[]
[]
[]
[]
[null,25]
[]
[]
[]
[]
[null,30]
[null,null,"参加人数",81,null,"総ゲーム数",567,"J.B.C 負担金",null,null,null,null,"確認印"]
[]
[null,null,"○　氏名は日本文字で、J.B.C No.の無い記録は記録されませんので必ず記入する事。"]
[null,null,"○　本報告書の記録はすべてスクラッチの記録を記入すること。",null,null,null,null,null,null,"　リーグ・競技会会長押印欄"]
[null,null,"○　本報告書はリーグ、競技会終了後２週間以内に報告する事。"]
[null,null,"○　本報告書と共に競技会負担金を送金する事。"]
[null,null,"○　報告書が何枚にもわたる時は登録番号右の欄に記入し、最後の頁に参加人数、",null,null,null,null,null,null,"　立合審判員",null,"(第１種)"]
[null,null,"　　総ゲーム、負担金を記入すること。"]

{"sheet":"設定","index":3,"n_rows":45,"n_cols":12,"rows_kept":45,"cut":false,"hidden":false,"merged":[]}
[null,null,null,null,null,null,null,null,null,"斉","齋",{"$f":"COUNTA(J1:J200)","v":8}]
[null,null,null,null,null,null,null,null,null,"斉","齊"]
[null,null,null,null,null,null,null,null,null,"恵","惠"]
[null,null,null,null,null,null,null,null,null,"沢","澤"]
[null,null,null,null,null,null,null,null,null,"斉","斎"]
[null,null,null,null,null,null,null,null,null,"真","眞"]
[null,null,null,null,null,null,null,null,null,"高","髙"]
["以下は自動計算ですので値は変更しないでください",null,null,null,null,null,null,null,null,"濱","浜"]
["参加人数",{"$f":"COUNTA(データ!$C$2:$C$4493)","v":0},null,null,null,null,"第１種"]
["全ゲーム数",{"$f":"SUM(データ!$E$2:$E$4493)","v":0},null,null,null,null,"第２種"]
["報告書ページ数",{"$f":"ROUNDUP(B9/30,0)","v":0},null,null,null,null,"第３種"]
["現在のファイル名",{"$f":"MID(CELL(\"filename\"),SEARCH(\"[\",CELL(\"filename\"))+1, SEARCH(\"]\",CELL(\"filename\"))-SEARCH(\"[\",CELL(\"filename\"))-1)","v":"【2024年度】JBC個人競技記録報告書作成用R5_2024.xlsm"}]
[]
["基準日","2024-04-01",null,null,null,null,"シニア男子"]
[null,null,null,null,null,null,"シニア女子"]
["氏名",null,{"$f":"C18&C17","v":"シニア"},null,null,null,"ジュニア男子"]
[null,{"$f":"IFERROR(VLOOKUP(B16,#REF!,2,FALSE),\"\")","v":""},{"$f":"IF(B17=1,\"男子\",IF(B17=2,\"女子\",\"\"))","v":""},null,null,null,"ジュニア女子"]
[null,{"$f":"IFERROR(VLOOKUP(B16,#REF!,9,FALSE),\"\")","v":""},{"$f":"IF(B18<18,\"ジュニア\",IF(B18>=50,\"シニア\",\"一般\"))","v":"シニア"},null,null,null,"一般男子"]
[null,{"$f":"IFERROR(VLOOKUP(B16,#REF!,5,FALSE),\"\")","v":""},null,null,null,null,"一般女子"]
[]
[]
[null,null,null,null,null,null,"個人戦"]
["世田谷オークラボウル","113-02",null,null,null,null,"２人チーム"]
["東京ポートボウル","113-27",null,null,null,null,"３人チーム"]
["品川プリンスホテルボウリングセンター","113-41",null,null,null,null,"４人チーム"]
["荻窪ボウル","113-80",null,null,null,null,"５人チーム"]
["高尾スターレーン","113-101",null,null,null,null,"６人チーム"]
["アイビーボウル向島 ","113-107"]
["マルアイボウリング","113-109"]
["王子駅前サンスクエアボウル","113-111"]
["東大和グランドボウル","113-112"]
["ラウンドワン南砂店","113-118"]
["立川スターレーン","113-120"]
["トミコシ高島平ボウル ","113-121"]
["高田馬場グランドボウル ","113-122"]
["笹塚ボウル","113-123"]
["ラウンドワン府中本町駅前店","113-124"]
["平和島スターボウル","113-126"]
["ラウンドワン町田店","113-128"]
["ラウンドワンスタジアム板橋店","113-129"]
["ラウンドワン武蔵村山店","113-130"]
["ラウンドワンスタジアムダイバーシティ東京プラザ店","113-131"]
["ラウンドワン池袋店","113-132"]
["SAP日野ボウル","113-133"]
["ラウンドワン吉祥寺店","113-134"]

{"sheet":"データ","index":4,"n_rows":400,"n_cols":58,"rows_kept":400,"cut":false,"hidden":false,"merged":[]}
["連盟コード","JBC番号","氏名","トータル","ゲーム数","HG","HS","入力は2行目から。",null,null,null,null,null,"１Ｇ","２Ｇ","３Ｇ","１Ｓ","４Ｇ","５Ｇ","６Ｇ","２Ｓ","７Ｇ","８Ｇ","９Ｇ","３Ｓ","１０Ｇ","１１G","１２Ｇ","４Ｓ","１３Ｇ","１４Ｇ","１５Ｇ","５Ｓ","１６Ｇ","１７Ｇ","１８Ｇ","６Ｓ","１９Ｇ","２０Ｇ","２１Ｇ","７Ｓ","２２Ｇ","２３Ｇ","２４Ｇ","８Ｓ","２５Ｇ","２６Ｇ","２７Ｇ","９Ｓ","２８Ｇ","２９Ｇ","３０Ｇ","１０Ｓ",null,"トータル","ゲーム数","HG","HS"]
[null,null,null,null,null,null,null,null,null,null,null,null,null,null,null,null,null,null,null,null,null,null,null,null,null,null,null,null,null,null,null,null,null,null,null,null,null,null,null,null,null,null,null,null,null,null,null,null,null,null,null,null,null,null,{"$f":"SUM(N2:P2,R2:T2,V2:X2,Z2:AB2,AD2:AF2,AH2:AJ2,AL2:AN2,AP2:AR2,AT2:AV2,AX2:AZ2)","v":0},{"$f":"COUNT(N2:P2,R2:T2,V2:X2,Z2:AB2,AD2:AF2,AH2:AJ2,AL2:AN2,AP2:AR2,AT2:AV2,AX2:AZ2)","v":0},{"$f":"MAX(N2:P2,R2:T2,V2:X2,Z2:AB2,AD2:AF2,AH2:AJ2,AL2:AN2,AP2:AR2,AT2:AV2,AX2:AZ2)","v":0},{"$f":"MAX(Q2,U2,Y2,AC2,AG2,AK2,AO2,AS2,AW2,BA2)","v":0}]
[null,null,null,null,null,null,null,null,null,null,null,null,null,null,null,null,null,null,null,null,null,null,null,null,null,null,null,null,null,null,null,null,null,null,null,null,null,null,null,null,null,null,null,null,null,null,null,null,null,null,null,null,null,null,0,0,0,0]
[null,null,null,null,null,null,null,null,null,null,null,null,null,null,null,null,null,null,null,null,null,null,null,null,null,null,null,null,null,null,null,null,null,null,null,null,null,null,null,null,null,null,null,null,null,null,null,null,null,null,null,null,null,null,0,0,0,0]
[null,null,null,null,null,null,null,null,null,null,null,null,null,null,null,null,null,null,null,null,null,null,null,null,null,null,null,null,null,null,null,null,null,null,null,null,null,null,null,null,null,null,null,null,null,null,null,null,null,null,null,null,null,null,0,0,0,0]
[null,null,null,null,null,null,null,null,null,null,null,null,null,null,null,null,null,null,null,null,null,null,null,null,null,null,null,null,null,null,null,null,null,null,null,null,null,null,null,null,null,null,null,null,null,null,null,null,null,null,null,null,null,null,0,0,0,0]
[null,null,null,null,null,null,null,null,null,null,null,null,null,null,null,null,null,null,null,null,null,null,null,null,null,null,null,null,null,null,null,null,null,null,null,null,null,null,null,null,null,null,null,null,null,null,null,null,null,null,null,null,null,null,0,0,0,0]
[null,null,null,null,null,null,null,null,null,null,null,null,null,null,null,null,null,null,null,null,null,null,null,null,null,null,null,null,null,null,null,null,null,null,null,null,null,null,null,null,null,null,null,null,null,null,null,null,null,null,null,null,null,null,0,0,0,0]
[null,null,null,null,null,null,null,null,null,null,null,null,null,null,null,null,null,null,null,null,null,null,null,null,null,null,null,null,null,null,null,null,null,null,null,null,null,null,null,null,null,null,null,null,null,null,null,null,null,null,null,null,null,null,0,0,0,0]
[null,null,null,null,null,null,null,null,null,null,null,null,null,null,null,null,null,null,null,null,null,null,null,null,null,null,null,null,null,null,null,null,null,null,null,null,null,null,null,null,null,null,null,null,null,null,null,null,null,null,null,null,null,null,0,0,0,0]
[null,null,null,null,null,null,null,null,null,null,null,null,null,null,null,null,null,null,null,null,null,null,null,null,null,null,null,null,null,null,null,null,null,null,null,null,null,null,null,null,null,null,null,null,null,null,null,null,null,null,null,null,null,null,0,0,0,0]
[null,null,null,null,null,null,null,null,null,null,null,null,null,null,null,null,null,null,null,null,null,null,null,null,null,null,null,null,null,null,null,null,null,null,null,null,null,null,null,null,null,null,null,null,null,null,null,null,null,null,null,null,null,null,0,0,0,0]
[null,null,null,null,null,null,null,null,null,null,null,null,null,null,null,null,null,null,null,null,null,null,null,null,null,null,null,null,null,null,null,null,null,null,null,null,null,null,null,null,null,null,null,null,null,null,null,null,null,null,null,null,null,null,0,0,0,0]
[null,null,null,null,null,null,null,null,null,null,null,null,null,null,null,null,null,null,null,null,null,null,null,null,null,null,null,null,null,null,null,null,null,null,null,null,null,null,null,null,null,null,null,null,null,null,null,null,null,null,null,null,null,null,0,0,0,0]
[null,null,null,null,null,null,null,null,null,null,null,null,null,null,null,null,null,null,null,null,null,null,null,null,null,null,null,null,null,null,null,null,null,null,null,null,null,null,null,null,null,null,null,null,null,null,null,null,null,null,null,null,null,null,0,0,0,0]
[null,null,null,null,null,null,null,null,null,null,null,null,null,null,null,null,null,null,null,null,null,null,null,null,null,null,null,null,null,null,null,null,null,null,null,null,null,null,null,null,null,null,null,null,null,null,null,null,null,null,null,null,null,null,0,0,0,0]
[null,null,null,null,null,null,null,null,null,null,null,null,null,null,null,null,null,null,null,null,null,null,null,null,null,null,null,null,null,null,null,null,null,null,null,null,null,null,null,null,null,null,null,null,null,null,null,null,null,null,null,null,null,null,0,0,0,0]
[null,null,null,null,null,null,null,null,null,null,null,null,null,null,null,null,null,null,null,null,null,null,null,null,null,null,null,null,null,null,null,null,null,null,null,null,null,null,null,null,null,null,null,null,null,null,null,null,null,null,null,null,null,null,0,0,0,0]
[null,null,null,null,null,null,null,null,null,null,null,null,null,null,null,null,null,null,null,null,null,null,null,null,null,null,null,null,null,null,null,null,null,null,null,null,null,null,null,null,null,null,null,null,null,null,null,null,null,null,null,null,null,null,0,0,0,0]
[null,null,null,null,null,null,null,null,null,null,null,null,null,null,null,null,null,null,null,null,null,null,null,null,null,null,null,null,null,null,null,null,null,null,null,null,null,null,null,null,null,null,null,null,null,null,null,null,null,null,null,null,null,null,0,0,0,0]
[null,null,null,null,null,null,null,null,null,null,null,null,null,null,null,null,null,null,null,null,null,null,null,null,null,null,null,null,null,null,null,null,null,null,null,null,null,null,null,null,null,null,null,null,null,null,null,null,null,null,null,null,null,null,0,0,0,0]
[null,null,null,null,null,null,null,null,null,null,null,null,null,null,null,null,null,null,null,null,null,null,null,null,null,null,null,null,null,null,null,null,null,null,null,null,null,null,null,null,null,null,null,null,null,null,null,null,null,null,null,null,null,null,0,0,0,0]
[null,null,null,null,null,null,null,null,null,null,null,null,null,null,null,null,null,null,null,null,null,null,null,null,null,null,null,null,null,null,null,null,null,null,null,null,null,null,null,null,null,null,null,null,null,null,null,null,null,null,null,null,null,null,0,0,0,0]
[null,null,null,null,null,null,null,null,null,null,null,null,null,null,null,null,null,null,null,null,null,null,null,null,null,null,null,null,null,null,null,null,null,null,null,null,null,null,null,null,null,null,null,null,null,null,null,null,null,null,null,null,null,null,0,0,0,0]
[null,null,null,null,null,null,null,null,null,null,null,null,null,null,null,null,null,null,null,null,null,null,null,null,null,null,null,null,null,null,null,null,null,null,null,null,null,null,null,null,null,null,null,null,null,null,null,null,null,null,null,null,null,null,0,0,0,0]
[null,null,null,null,null,null,null,null,null,null,null,null,null,null,null,null,null,null,null,null,null,null,null,null,null,null,null,null,null,null,null,null,null,null,null,null,null,null,null,null,null,null,null,null,null,null,null,null,null,null,null,null,null,null,0,0,0,0]
[null,null,null,null,null,null,null,null,null,null,null,null,null,null,null,null,null,null,null,null,null,null,null,null,null,null,null,null,null,null,null,null,null,null,null,null,null,null,null,null,null,null,null,null,null,null,null,null,null,null,null,null,null,null,0,0,0,0]
[null,null,null,null,null,null,null,null,null,null,null,null,null,null,null,null,null,null,null,null,null,null,null,null,null,null,null,null,null,null,null,null,null,null,null,null,null,null,null,null,null,null,null,null,null,null,null,null,null,null,null,null,null,null,0,0,0,0]
[null,null,null,null,null,null,null,null,null,null,null,null,null,null,null,null,null,null,null,null,null,null,null,null,null,null,null,null,null,null,null,null,null,null,null,null,null,null,null,null,null,null,null,null,null,null,null,null,null,null,null,null,null,null,0,0,0,0]
[null,null,null,null,null,null,null,null,null,null,null,null,null,null,null,null,null,null,null,null,null,null,null,null,null,null,null,null,null,null,null,null,null,null,null,null,null,null,null,null,null,null,null,null,null,null,null,null,null,null,null,null,null,null,0,0,0,0]
[null,null,null,null,null,null,null,null,null,null,null,null,null,null,null,null,null,null,null,null,null,null,null,null,null,null,null,null,null,null,null,null,null,null,null,null,null,null,null,null,null,null,null,null,null,null,null,null,null,null,null,null,null,null,0,0,0,0]
[null,null,null,null,null,null,null,null,null,null,null,null,null,null,null,null,null,null,null,null,null,null,null,null,null,null,null,null,null,null,null,null,null,null,null,null,null,null,null,null,null,null,null,null,null,null,null,null,null,null,null,null,null,null,0,0,0,0]
[null,null,null,null,null,null,null,null,null,null,null,null,null,null,null,null,null,null,null,null,null,null,null,null,null,null,null,null,null,null,null,null,null,null,null,null,null,null,null,null,null,null,null,null,null,null,null,null,null,null,null,null,null,null,0,0,0,0]
[null,null,null,null,null,null,null,null,null,null,null,null,null,null,null,null,null,null,null,null,null,null,null,null,null,null,null,null,null,null,null,null,null,null,null,null,null,null,null,null,null,null,null,null,null,null,null,null,null,null,null,null,null,null,0,0,0,0]
[null,null,null,null,null,null,null,null,null,null,null,null,null,null,null,null,null,null,null,null,null,null,null,null,null,null,null,null,null,null,null,null,null,null,null,null,null,null,null,null,null,null,null,null,null,null,null,null,null,null,null,null,null,null,0,0,0,0]
[null,null,null,null,null,null,null,null,null,null,null,null,null,null,null,null,null,null,null,null,null,null,null,null,null,null,null,null,null,null,null,null,null,null,null,null,null,null,null,null,null,null,null,null,null,null,null,null,null,null,null,null,null,null,0,0,0,0]
[null,null,null,null,null,null,null,null,null,null,null,null,null,null,null,null,null,null,null,null,null,null,null,null,null,null,null,null,null,null,null,null,null,null,null,null,null,null,null,null,null,null,null,null,null,null,null,null,null,null,null,null,null,null,0,0,0,0]
[null,null,null,null,null,null,null,null,null,null,null,null,null,null,null,null,null,null,null,null,null,null,null,null,null,null,null,null,null,null,null,null,null,null,null,null,null,null,null,null,null,null,null,null,null,null,null,null,null,null,null,null,null,null,0,0,0,0]
[null,null,null,null,null,null,null,null,null,null,null,null,null,null,null,null,null,null,null,null,null,null,null,null,null,null,null,null,null,null,null,null,null,null,null,null,null,null,null,null,null,null,null,null,null,null,null,null,null,null,null,null,null,null,0,0,0,0]
[null,null,null,null,null,null,null,null,null,null,null,null,null,null,null,null,null,null,null,null,null,null,null,null,null,null,null,null,null,null,null,null,null,null,null,null,null,null,null,null,null,null,null,null,null,null,null,null,null,null,null,null,null,null,0,0,0,0]
[null,null,null,null,null,null,null,null,null,null,null,null,null,null,null,null,null,null,null,null,null,null,null,null,null,null,null,null,null,null,null,null,null,null,null,null,null,null,null,null,null,null,null,null,null,null,null,null,null,null,null,null,null,null,0,0,0,0]
[null,null,null,null,null,null,null,null,null,null,null,null,null,null,null,null,null,null,null,null,null,null,null,null,null,null,null,null,null,null,null,null,null,null,null,null,null,null,null,null,null,null,null,null,null,null,null,null,null,null,null,null,null,null,0,0,0,0]
[null,null,null,null,null,null,null,null,null,null,null,null,null,null,null,null,null,null,null,null,null,null,null,null,null,null,null,null,null,null,null,null,null,null,null,null,null,null,null,null,null,null,null,null,null,null,null,null,null,null,null,null,null,null,0,0,0,0]
[null,null,null,null,null,null,null,null,null,null,null,null,null,null,null,null,null,null,null,null,null,null,null,null,null,null,null,null,null,null,null,null,null,null,null,null,null,null,null,null,null,null,null,null,null,null,null,null,null,null,null,null,null,null,0,0,0,0]
[null,null,null,null,null,null,null,null,null,null,null,null,null,null,null,null,null,null,null,null,null,null,null,null,null,null,null,null,null,null,null,null,null,null,null,null,null,null,null,null,null,null,null,null,null,null,null,null,null,null,null,null,null,null,0,0,0,0]
[null,null,null,null,null,null,null,null,null,null,null,null,null,null,null,null,null,null,null,null,null,null,null,null,null,null,null,null,null,null,null,null,null,null,null,null,null,null,null,null,null,null,null,null,null,null,null,null,null,null,null,null,null,null,0,0,0,0]
[null,null,null,null,null,null,null,null,null,null,null,null,null,null,null,null,null,null,null,null,null,null,null,null,null,null,null,null,null,null,null,null,null,null,null,null,null,null,null,null,null,null,null,null,null,null,null,null,null,null,null,null,null,null,0,0,0,0]
[null,null,null,null,null,null,null,null,null,null,null,null,null,null,null,null,null,null,null,null,null,null,null,null,null,null,null,null,null,null,null,null,null,null,null,null,null,null,null,null,null,null,null,null,null,null,null,null,null,null,null,null,null,null,0,0,0,0]
[null,null,null,null,null,null,null,null,null,null,null,null,null,null,null,null,null,null,null,null,null,null,null,null,null,null,null,null,null,null,null,null,null,null,null,null,null,null,null,null,null,null,null,null,null,null,null,null,null,null,null,null,null,null,0,0,0,0]
[null,null,null,null,null,null,null,null,null,null,null,null,null,null,null,null,null,null,null,null,null,null,null,null,null,null,null,null,null,null,null,null,null,null,null,null,null,null,null,null,null,null,null,null,null,null,null,null,null,null,null,null,null,null,0,0,0,0]
[null,null,null,null,null,null,null,null,null,null,null,null,null,null,null,null,null,null,null,null,null,null,null,null,null,null,null,null,null,null,null,null,null,null,null,null,null,null,null,null,null,null,null,null,null,null,null,null,null,null,null,null,null,null,0,0,0,0]
[null,null,null,null,null,null,null,null,null,null,null,null,null,null,null,null,null,null,null,null,null,null,null,null,null,null,null,null,null,null,null,null,null,null,null,null,null,null,null,null,null,null,null,null,null,null,null,null,null,null,null,null,null,null,0,0,0,0]
[null,null,null,null,null,null,null,null,null,null,null,null,null,null,null,null,null,null,null,null,null,null,null,null,null,null,null,null,null,null,null,null,null,null,null,null,null,null,null,null,null,null,null,null,null,null,null,null,null,null,null,null,null,null,0,0,0,0]
[null,null,null,null,null,null,null,null,null,null,null,null,null,null,null,null,null,null,null,null,null,null,null,null,null,null,null,null,null,null,null,null,null,null,null,null,null,null,null,null,null,null,null,null,null,null,null,null,null,null,null,null,null,null,0,0,0,0]
[null,null,null,null,null,null,null,null,null,null,null,null,null,null,null,null,null,null,null,null,null,null,null,null,null,null,null,null,null,null,null,null,null,null,null,null,null,null,null,null,null,null,null,null,null,null,null,null,null,null,null,null,null,null,0,0,0,0]
[null,null,null,null,null,null,null,null,null,null,null,null,null,null,null,null,null,null,null,null,null,null,null,null,null,null,null,null,null,null,null,null,null,null,null,null,null,null,null,null,null,null,null,null,null,null,null,null,null,null,null,null,null,null,0,0,0,0]
[null,null,null,null,null,null,null,null,null,null,null,null,null,null,null,null,null,null,null,null,null,null,null,null,null,null,null,null,null,null,null,null,null,null,null,null,null,null,null,null,null,null,null,null,null,null,null,null,null,null,null,null,null,null,0,0,0,0]
[null,null,null,null,null,null,null,null,null,null,null,null,null,null,null,null,null,null,null,null,null,null,null,null,null,null,null,null,null,null,null,null,null,null,null,null,null,null,null,null,null,null,null,null,null,null,null,null,null,null,null,null,null,null,0,0,0,0]
[null,null,null,null,null,null,null,null,null,null,null,null,null,null,null,null,null,null,null,null,null,null,null,null,null,null,null,null,null,null,null,null,null,null,null,null,null,null,null,null,null,null,null,null,null,null,null,null,null,null,null,null,null,null,0,0,0,0]
[null,null,null,null,null,null,null,null,null,null,null,null,null,null,null,null,null,null,null,null,null,null,null,null,null,null,null,null,null,null,null,null,null,null,null,null,null,null,null,null,null,null,null,null,null,null,null,null,null,null,null,null,null,null,0,0,0,0]
[null,null,null,null,null,null,null,null,null,null,null,null,null,null,null,null,null,null,null,null,null,null,null,null,null,null,null,null,null,null,null,null,null,null,null,null,null,null,null,null,null,null,null,null,null,null,null,null,null,null,null,null,null,null,0,0,0,0]
[null,null,null,null,null,null,null,null,null,null,null,null,null,null,null,null,null,null,null,null,null,null,null,null,null,null,null,null,null,null,null,null,null,null,null,null,null,null,null,null,null,null,null,null,null,null,null,null,null,null,null,null,null,null,0,0,0,0]
[null,null,null,null,null,null,null,null,null,null,null,null,null,null,null,null,null,null,null,null,null,null,null,null,null,null,null,null,null,null,null,null,null,null,null,null,null,null,null,null,null,null,null,null,null,null,null,null,null,null,null,null,null,null,0,0,0,0]
[null,null,null,null,null,null,null,null,null,null,null,null,null,null,null,null,null,null,null,null,null,null,null,null,null,null,null,null,null,null,null,null,null,null,null,null,null,null,null,null,null,null,null,null,null,null,null,null,null,null,null,null,null,null,0,0,0,0]
[null,null,null,null,null,null,null,null,null,null,null,null,null,null,null,null,null,null,null,null,null,null,null,null,null,null,null,null,null,null,null,null,null,null,null,null,null,null,null,null,null,null,null,null,null,null,null,null,null,null,null,null,null,null,0,0,0,0]
[null,null,null,null,null,null,null,null,null,null,null,null,null,null,null,null,null,null,null,null,null,null,null,null,null,null,null,null,null,null,null,null,null,null,null,null,null,null,null,null,null,null,null,null,null,null,null,null,null,null,null,null,null,null,{"$f":"SUM(N66:P66,R66:T66,V66:X66,Z66:AB66,AD66:AF66,AH66:AJ66,AL66:AN66,AP66:AR66,AT66:AV66,AX66:AZ66)","v":0},{"$f":"COUNT(N66:P66,R66:T66,V66:X66,Z66:AB66,AD66:AF66,AH66:AJ66,AL66:AN66,AP66:AR66,AT66:AV66,AX66:AZ66)","v":0},{"$f":"MAX(N66:P66,R66:T66,V66:X66,Z66:AB66,AD66:AF66,AH66:AJ66,AL66:AN66,AP66:AR66,AT66:AV66,AX66:AZ66)","v":0},{"$f":"MAX(Q66,U66,Y66,AC66,AG66,AK66,AO66,AS66,AW66,BA66)","v":0}]
[null,null,null,null,null,null,null,null,null,null,null,null,null,null,null,null,null,null,null,null,null,null,null,null,null,null,null,null,null,null,null,null,null,null,null,null,null,null,null,null,null,null,null,null,null,null,null,null,null,null,null,null,null,null,0,0,0,0]
[null,null,null,null,null,null,null,null,null,null,null,null,null,null,null,null,null,null,null,null,null,null,null,null,null,null,null,null,null,null,null,null,null,null,null,null,null,null,null,null,null,null,null,null,null,null,null,null,null,null,null,null,null,null,0,0,0,0]
[null,null,null,null,null,null,null,null,null,null,null,null,null,null,null,null,null,null,null,null,null,null,null,null,null,null,null,null,null,null,null,null,null,null,null,null,null,null,null,null,null,null,null,null,null,null,null,null,null,null,null,null,null,null,0,0,0,0]
[null,null,null,null,null,null,null,null,null,null,null,null,null,null,null,null,null,null,null,null,null,null,null,null,null,null,null,null,null,null,null,null,null,null,null,null,null,null,null,null,null,null,null,null,null,null,null,null,null,null,null,null,null,null,0,0,0,0]
[null,null,null,null,null,null,null,null,null,null,null,null,null,null,null,null,null,null,null,null,null,null,null,null,null,null,null,null,null,null,null,null,null,null,null,null,null,null,null,null,null,null,null,null,null,null,null,null,null,null,null,null,null,null,0,0,0,0]
[null,null,null,null,null,null,null,null,null,null,null,null,null,null,null,null,null,null,null,null,null,null,null,null,null,null,null,null,null,null,null,null,null,null,null,null,null,null,null,null,null,null,null,null,null,null,null,null,null,null,null,null,null,null,0,0,0,0]
[null,null,null,null,null,null,null,null,null,null,null,null,null,null,null,null,null,null,null,null,null,null,null,null,null,null,null,null,null,null,null,null,null,null,null,null,null,null,null,null,null,null,null,null,null,null,null,null,null,null,null,null,null,null,0,0,0,0]
[null,null,null,null,null,null,null,null,null,null,null,null,null,null,null,null,null,null,null,null,null,null,null,null,null,null,null,null,null,null,null,null,null,null,null,null,null,null,null,null,null,null,null,null,null,null,null,null,null,null,null,null,null,null,0,0,0,0]
[null,null,null,null,null,null,null,null,null,null,null,null,null,null,null,null,null,null,null,null,null,null,null,null,null,null,null,null,null,null,null,null,null,null,null,null,null,null,null,null,null,null,null,null,null,null,null,null,null,null,null,null,null,null,0,0,0,0]
[null,null,null,null,null,null,null,null,null,null,null,null,null,null,null,null,null,null,null,null,null,null,null,null,null,null,null,null,null,null,null,null,null,null,null,null,null,null,null,null,null,null,null,null,null,null,null,null,null,null,null,null,null,null,0,0,0,0]
[null,null,null,null,null,null,null,null,null,null,null,null,null,null,null,null,null,null,null,null,null,null,null,null,null,null,null,null,null,null,null,null,null,null,null,null,null,null,null,null,null,null,null,null,null,null,null,null,null,null,null,null,null,null,0,0,0,0]
[null,null,null,null,null,null,null,null,null,null,null,null,null,null,null,null,null,null,null,null,null,null,null,null,null,null,null,null,null,null,null,null,null,null,null,null,null,null,null,null,null,null,null,null,null,null,null,null,null,null,null,null,null,null,0,0,0,0]
[null,null,null,null,null,null,null,null,null,null,null,null,null,null,null,null,null,null,null,null,null,null,null,null,null,null,null,null,null,null,null,null,null,null,null,null,null,null,null,null,null,null,null,null,null,null,null,null,null,null,null,null,null,null,0,0,0,0]
[null,null,null,null,null,null,null,null,null,null,null,null,null,null,null,null,null,null,null,null,null,null,null,null,null,null,null,null,null,null,null,null,null,null,null,null,null,null,null,null,null,null,null,null,null,null,null,null,null,null,null,null,null,null,0,0,0,0]
[null,null,null,null,null,null,null,null,null,null,null,null,null,null,null,null,null,null,null,null,null,null,null,null,null,null,null,null,null,null,null,null,null,null,null,null,null,null,null,null,null,null,null,null,null,null,null,null,null,null,null,null,null,null,0,0,0,0]
[null,null,null,null,null,null,null,null,null,null,null,null,null,null,null,null,null,null,null,null,null,null,null,null,null,null,null,null,null,null,null,null,null,null,null,null,null,null,null,null,null,null,null,null,null,null,null,null,null,null,null,null,null,null,0,0,0,0]
[null,null,null,null,null,null,null,null,null,null,null,null,null,null,null,null,null,null,null,null,null,null,null,null,null,null,null,null,null,null,null,null,null,null,null,null,null,null,null,null,null,null,null,null,null,null,null,null,null,null,null,null,null,null,0,0,0,0]
[null,null,null,null,null,null,null,null,null,null,"","",null,"","","","","","","","","","","","",null,null,null,null,null,null,null,null,null,null,null,null,null,null,null,null,null,null,null,null,null,null,null,null,null,null,null,null,null,0,0,0,0]
[null,null,null,null,null,null,null,null,null,null,"","",null,"","","","","","","","","","","","",null,null,null,null,null,null,null,null,null,null,null,null,null,null,null,null,null,null,null,null,null,null,null,null,null,null,null,null,null,0,0,0,0]
[null,null,null,null,null,null,null,null,null,null,"","",null,"","","","","","","","","","","","",null,null,null,null,null,null,null,null,null,null,null,null,null,null,null,null,null,null,null,null,null,null,null,null,null,null,null,null,null,0,0,0,0]
[null,null,null,null,null,null,null,null,null,null,"","",null,"","","","","","","","","","","","",null,null,null,null,null,null,null,null,null,null,null,null,null,null,null,null,null,null,null,null,null,null,null,null,null,null,null,null,null,0,0,0,0]
[null,null,null,null,null,null,null,null,null,null,"","",null,"","","","","","","","","","","","",null,null,null,null,null,null,null,null,null,null,null,null,null,null,null,null,null,null,null,null,null,null,null,null,null,null,null,null,null,0,0,0,0]
[null,null,null,null,null,null,null,null,null,null,"","",null,"","","","","","","","","","","","",null,null,null,null,null,null,null,null,null,null,null,null,null,null,null,null,null,null,null,null,null,null,null,null,null,null,null,null,null,0,0,0,0]
[null,null,null,null,null,null,null,null,null,null,"","",null,"","","","","","","","","","","","",null,null,null,null,null,null,null,null,null,null,null,null,null,null,null,null,null,null,null,null,null,null,null,null,null,null,null,null,null,0,0,0,0]
[null,null,null,null,null,null,null,null,null,null,"","",null,"","","","","","","","","","","","",null,null,null,null,null,null,null,null,null,null,null,null,null,null,null,null,null,null,null,null,null,null,null,null,null,null,null,null,null,0,0,0,0]
[null,null,null,null,null,null,null,null,null,null,"","",null,"","","","","","","","","","","","",null,null,null,null,null,null,null,null,null,null,null,null,null,null,null,null,null,null,null,null,null,null,null,null,null,null,null,null,null,0,0,0,0]
[null,null,null,null,null,null,null,null,null,null,"","",null,"","","","","","","","","","","","",null,null,null,null,null,null,null,null,null,null,null,null,null,null,null,null,null,null,null,null,null,null,null,null,null,null,null,null,null,0,0,0,0]
[null,null,null,null,null,null,null,null,null,null,"","",null,"","","","","","","","","","","","",null,null,null,null,null,null,null,null,null,null,null,null,null,null,null,null,null,null,null,null,null,null,null,null,null,null,null,null,null,0,0,0,0]
[null,null,null,null,null,null,null,null,null,null,"","",null,"","","","","","","","","","","","",null,null,null,null,null,null,null,null,null,null,null,null,null,null,null,null,null,null,null,null,null,null,null,null,null,null,null,null,null,0,0,0,0]
[null,null,null,null,null,null,null,null,null,null,"","",null,"","","","","","","","","","","","",null,null,null,null,null,null,null,null,null,null,null,null,null,null,null,null,null,null,null,null,null,null,null,null,null,null,null,null,null,0,0,0,0]
[null,null,null,null,null,null,null,null,null,null,"","",null,"","","","","","","","","","","","",null,null,null,null,null,null,null,null,null,null,null,null,null,null,null,null,null,null,null,null,null,null,null,null,null,null,null,null,null,0,0,0,0]
[null,null,null,null,null,null,null,null,null,null,"","",null,"","","","","","","","","","","","",null,null,null,null,null,null,null,null,null,null,null,null,null,null,null,null,null,null,null,null,null,null,null,null,null,null,null,null,null,0,0,0,0]
[null,null,null,null,null,null,null,null,null,null,"","",null,"","","","","","","","","","","","",null,null,null,null,null,null,null,null,null,null,null,null,null,null,null,null,null,null,null,null,null,null,null,null,null,null,null,null,null,0,0,0,0]
[null,null,null,null,null,null,null,null,null,null,"","",null,"","","","","","","","","","","","",null,null,null,null,null,null,null,null,null,null,null,null,null,null,null,null,null,null,null,null,null,null,null,null,null,null,null,null,null,0,0,0,0]
[null,null,null,null,null,null,null,null,null,null,"","",null,"","","","","","","","","","","","",null,null,null,null,null,null,null,null,null,null,null,null,null,null,null,null,null,null,null,null,null,null,null,null,null,null,null,null,null,0,0,0,0]
[null,null,null,null,null,null,null,null,null,null,"","",null,"","","","","","","","","","","","",null,null,null,null,null,null,null,null,null,null,null,null,null,null,null,null,null,null,null,null,null,null,null,null,null,null,null,null,null,0,0,0,0]
[null,null,null,null,null,null,null,null,null,null,"","",null,"","","","","","","","","","","","",null,null,null,null,null,null,null,null,null,null,null,null,null,null,null,null,null,null,null,null,null,null,null,null,null,null,null,null,null,0,0,0,0]
[null,null,null,null,null,null,null,null,null,null,"","",null,"","","","","","","","","","","","",null,null,null,null,null,null,null,null,null,null,null,null,null,null,null,null,null,null,null,null,null,null,null,null,null,null,null,null,null,0,0,0,0]
[null,null,null,null,null,null,null,null,null,null,"","",null,"","","","","","","","","","","","",null,null,null,null,null,null,null,null,null,null,null,null,null,null,null,null,null,null,null,null,null,null,null,null,null,null,null,null,null,0,0,0,0]
[null,null,null,null,null,null,null,null,null,null,"","",null,"","","","","","","","","","","","",null,null,null,null,null,null,null,null,null,null,null,null,null,null,null,null,null,null,null,null,null,null,null,null,null,null,null,null,null,0,0,0,0]
[null,null,null,null,null,null,null,null,null,null,"","",null,"","","","","","","","","","","","",null,null,null,null,null,null,null,null,null,null,null,null,null,null,null,null,null,null,null,null,null,null,null,null,null,null,null,null,null,0,0,0,0]
[null,null,null,null,null,null,null,null,null,null,"","",null,"","","","","","","","","","","","",null,null,null,null,null,null,null,null,null,null,null,null,null,null,null,null,null,null,null,null,null,null,null,null,null,null,null,null,null,0,0,0,0]
[null,null,null,null,null,null,null,null,null,null,"","",null,"","","","","","","","","","","","",null,null,null,null,null,null,null,null,null,null,null,null,null,null,null,null,null,null,null,null,null,null,null,null,null,null,null,null,null,0,0,0,0]
[null,null,null,null,null,null,null,null,null,null,"","",null,null,null,null,null,null,null,null,null,null,null,null,null,null,null,null,null,null,null,null,null,null,null,null,null,null,null,null,null,null,null,null,null,null,null,null,null,null,null,null,null,null,0,0,0,0]
[null,null,null,null,null,null,null,null,null,null,"","",null,null,null,null,null,null,null,null,null,null,null,null,null,null,null,null,null,null,null,null,null,null,null,null,null,null,null,null,null,null,null,null,null,null,null,null,null,null,null,null,null,null,0,0,0,0]
[null,null,null,null,null,null,null,null,null,null,"","",null,null,null,null,null,null,null,null,null,null,null,null,null,null,null,null,null,null,null,null,null,null,null,null,null,null,null,null,null,null,null,null,null,null,null,null,null,null,null,null,null,null,0,0,0,0]
[null,null,null,null,null,null,null,null,null,null,"","",null,null,null,null,null,null,null,null,null,null,null,null,null,null,null,null,null,null,null,null,null,null,null,null,null,null,null,null,null,null,null,null,null,null,null,null,null,null,null,null,null,null,0,0,0,0]
[null,null,null,null,null,null,null,null,null,null,"","",null,null,null,null,null,null,null,null,null,null,null,null,null,null,null,null,null,null,null,null,null,null,null,null,null,null,null,null,null,null,null,null,null,null,null,null,null,null,null,null,null,null,0,0,0,0]
[null,null,null,null,null,null,null,null,null,null,"","",null,null,null,null,null,null,null,null,null,null,null,null,null,null,null,null,null,null,null,null,null,null,null,null,null,null,null,null,null,null,null,null,null,null,null,null,null,null,null,null,null,null,0,0,0,0]
[null,null,null,null,null,null,null,null,null,null,"","",null,null,null,null,null,null,null,null,null,null,null,null,null,null,null,null,null,null,null,null,null,null,null,null,null,null,null,null,null,null,null,null,null,null,null,null,null,null,null,null,null,null,0,0,0,0]
[null,null,null,null,null,null,null,null,null,null,"","",null,null,null,null,null,null,null,null,null,null,null,null,null,null,null,null,null,null,null,null,null,null,null,null,null,null,null,null,null,null,null,null,null,null,null,null,null,null,null,null,null,null,0,0,0,0]
[null,null,null,null,null,null,null,null,null,null,"","",null,null,null,null,null,null,null,null,null,null,null,null,null,null,null,null,null,null,null,null,null,null,null,null,null,null,null,null,null,null,null,null,null,null,null,null,null,null,null,null,null,null,0,0,0,0]
[null,null,null,null,null,null,null,null,null,null,"","",null,null,null,null,null,null,null,null,null,null,null,null,null,null,null,null,null,null,null,null,null,null,null,null,null,null,null,null,null,null,null,null,null,null,null,null,null,null,null,null,null,null,0,0,0,0]
[null,null,null,null,null,null,null,null,null,null,"","",null,null,null,null,null,null,null,null,null,null,null,null,null,null,null,null,null,null,null,null,null,null,null,null,null,null,null,null,null,null,null,null,null,null,null,null,null,null,null,null,null,null,0,0,0,0]
[null,null,null,null,null,null,null,null,null,null,"","",null,null,null,null,null,null,null,null,null,null,null,null,null,null,null,null,null,null,null,null,null,null,null,null,null,null,null,null,null,null,null,null,null,null,null,null,null,null,null,null,null,null,0,0,0,0]
[null,null,null,null,null,null,null,null,null,null,"","",null,null,null,null,null,null,null,null,null,null,null,null,null,null,null,null,null,null,null,null,null,null,null,null,null,null,null,null,null,null,null,null,null,null,null,null,null,null,null,null,null,null,0,0,0,0]
[null,null,null,null,null,null,null,null,null,null,"","",null,null,null,null,null,null,null,null,null,null,null,null,null,null,null,null,null,null,null,null,null,null,null,null,null,null,null,null,null,null,null,null,null,null,null,null,null,null,null,null,null,null,0,0,0,0]
[null,null,null,null,null,null,null,null,null,null,"","",null,null,null,null,null,null,null,null,null,null,null,null,null,null,null,null,null,null,null,null,null,null,null,null,null,null,null,null,null,null,null,null,null,null,null,null,null,null,null,null,null,null,0,0,0,0]
[null,null,null,null,null,null,null,null,null,null,"","",null,null,null,null,null,null,null,null,null,null,null,null,null,null,null,null,null,null,null,null,null,null,null,null,null,null,null,null,null,null,null,null,null,null,null,null,null,null,null,null,null,null,0,0,0,0]
[null,null,null,null,null,null,null,null,null,null,"","",null,null,null,null,null,null,null,null,null,null,null,null,null,null,null,null,null,null,null,null,null,null,null,null,null,null,null,null,null,null,null,null,null,null,null,null,null,null,null,null,null,null,0,0,0,0]
[null,null,null,null,null,null,null,null,null,null,"","",null,null,null,null,null,null,null,null,null,null,null,null,null,null,null,null,null,null,null,null,null,null,null,null,null,null,null,null,null,null,null,null,null,null,null,null,null,null,null,null,null,null,0,0,0,0]
[null,null,null,null,null,null,null,null,null,null,"","",null,null,null,null,null,null,null,null,null,null,null,null,null,null,null,null,null,null,null,null,null,null,null,null,null,null,null,null,null,null,null,null,null,null,null,null,null,null,null,null,null,null,0,0,0,0]
[null,null,null,null,null,null,null,null,null,null,"","",null,null,null,null,null,null,null,null,null,null,null,null,null,null,null,null,null,null,null,null,null,null,null,null,null,null,null,null,null,null,null,null,null,null,null,null,null,null,null,null,null,null,0,0,0,0]
[null,null,null,null,null,null,null,null,null,null,"","",null,null,null,null,null,null,null,null,null,null,null,null,null,null,null,null,null,null,null,null,null,null,null,null,null,null,null,null,null,null,null,null,null,null,null,null,null,null,null,null,null,null,{"$f":"SUM(N130:P130,R130:T130,V130:X130,Z130:AB130,AD130:AF130,AH130:AJ130,AL130:AN130,AP130:AR130,AT130:AV130,AX130:AZ130)","v":0},{"$f":"COUNT(N130:P130,R130:T130,V130:X130,Z130:AB130,AD130:AF130,AH130:AJ130,AL130:AN130,AP130:AR130,AT130:AV130,AX130:AZ130)","v":0},{"$f":"MAX(N130:P130,R130:T130,V130:X130,Z130:AB130,AD130:AF130,AH130:AJ130,AL130:AN130,AP130:AR130,AT130:AV130,AX130:AZ130)","v":0},{"$f":"MAX(Q130,U130,Y130,AC130,AG130,AK130,AO130,AS130,AW130,BA130)","v":0}]
[null,null,null,null,null,null,null,null,null,null,"","",null,null,null,null,null,null,null,null,null,null,null,null,null,null,null,null,null,null,null,null,null,null,null,null,null,null,null,null,null,null,null,null,null,null,null,null,null,null,null,null,null,null,0,0,0,0]
[null,null,null,null,null,null,null,null,null,null,"","",null,null,null,null,null,null,null,null,null,null,null,null,null,null,null,null,null,null,null,null,null,null,null,null,null,null,null,null,null,null,null,null,null,null,null,null,null,null,null,null,null,null,0,0,0,0]
[null,null,null,null,null,null,null,null,null,null,"","",null,null,null,null,null,null,null,null,null,null,null,null,null,null,null,null,null,null,null,null,null,null,null,null,null,null,null,null,null,null,null,null,null,null,null,null,null,null,null,null,null,null,0,0,0,0]
[null,null,null,null,null,null,null,null,null,null,"","",null,null,null,null,null,null,null,null,null,null,null,null,null,null,null,null,null,null,null,null,null,null,null,null,null,null,null,null,null,null,null,null,null,null,null,null,null,null,null,null,null,null,0,0,0,0]
[null,null,null,null,null,null,null,null,null,null,"","",null,null,null,null,null,null,null,null,null,null,null,null,null,null,null,null,null,null,null,null,null,null,null,null,null,null,null,null,null,null,null,null,null,null,null,null,null,null,null,null,null,null,0,0,0,0]
[null,null,null,null,null,null,null,null,null,null,"","",null,null,null,null,null,null,null,null,null,null,null,null,null,null,null,null,null,null,null,null,null,null,null,null,null,null,null,null,null,null,null,null,null,null,null,null,null,null,null,null,null,null,0,0,0,0]
[null,null,null,null,null,null,null,null,null,null,"","",null,null,null,null,null,null,null,null,null,null,null,null,null,null,null,null,null,null,null,null,null,null,null,null,null,null,null,null,null,null,null,null,null,null,null,null,null,null,null,null,null,null,0,0,0,0]
[null,null,null,null,null,null,null,null,null,null,"","",null,null,null,null,null,null,null,null,null,null,null,null,null,null,null,null,null,null,null,null,null,null,null,null,null,null,null,null,null,null,null,null,null,null,null,null,null,null,null,null,null,null,0,0,0,0]
[null,null,null,null,null,null,null,null,null,null,"","",null,null,null,null,null,null,null,null,null,null,null,null,null,null,null,null,null,null,null,null,null,null,null,null,null,null,null,null,null,null,null,null,null,null,null,null,null,null,null,null,null,null,0,0,0,0]
[null,null,null,null,null,null,null,null,null,null,"","",null,null,null,null,null,null,null,null,null,null,null,null,null,null,null,null,null,null,null,null,null,null,null,null,null,null,null,null,null,null,null,null,null,null,null,null,null,null,null,null,null,null,0,0,0,0]
[null,null,null,null,null,null,null,null,null,null,"","",null,null,null,null,null,null,null,null,null,null,null,null,null,null,null,null,null,null,null,null,null,null,null,null,null,null,null,null,null,null,null,null,null,null,null,null,null,null,null,null,null,null,0,0,0,0]
[null,null,null,null,null,null,null,null,null,null,"","",null,null,null,null,null,null,null,null,null,null,null,null,null,null,null,null,null,null,null,null,null,null,null,null,null,null,null,null,null,null,null,null,null,null,null,null,null,null,null,null,null,null,0,0,0,0]
[null,null,null,null,null,null,null,null,null,null,"","",null,null,null,null,null,null,null,null,null,null,null,null,null,null,null,null,null,null,null,null,null,null,null,null,null,null,null,null,null,null,null,null,null,null,null,null,null,null,null,null,null,null,0,0,0,0]
[null,null,null,null,null,null,null,null,null,null,"","",null,null,null,null,null,null,null,null,null,null,null,null,null,null,null,null,null,null,null,null,null,null,null,null,null,null,null,null,null,null,null,null,null,null,null,null,null,null,null,null,null,null,0,0,0,0]
[null,null,null,null,null,null,null,null,null,null,"","",null,null,null,null,null,null,null,null,null,null,null,null,null,null,null,null,null,null,null,null,null,null,null,null,null,null,null,null,null,null,null,null,null,null,null,null,null,null,null,null,null,null,0,0,0,0]
[null,null,null,null,null,null,null,null,null,null,"","",null,null,null,null,null,null,null,null,null,null,null,null,null,null,null,null,null,null,null,null,null,null,null,null,null,null,null,null,null,null,null,null,null,null,null,null,null,null,null,null,null,null,0,0,0,0]
[null,null,null,null,null,null,null,null,null,null,"","",null,null,null,null,null,null,null,null,null,null,null,null,null,null,null,null,null,null,null,null,null,null,null,null,null,null,null,null,null,null,null,null,null,null,null,null,null,null,null,null,null,null,0,0,0,0]
[null,null,null,null,null,null,null,null,null,null,"","",null,null,null,null,null,null,null,null,null,null,null,null,null,null,null,null,null,null,null,null,null,null,null,null,null,null,null,null,null,null,null,null,null,null,null,null,null,null,null,null,null,null,0,0,0,0]
[null,null,null,null,null,null,null,null,null,null,"","",null,null,null,null,null,null,null,null,null,null,null,null,null,null,null,null,null,null,null,null,null,null,null,null,null,null,null,null,null,null,null,null,null,null,null,null,null,null,null,null,null,null,0,0,0,0]
[null,null,null,null,null,null,null,null,null,null,"","",null,null,null,null,null,null,null,null,null,null,null,null,null,null,null,null,null,null,null,null,null,null,null,null,null,null,null,null,null,null,null,null,null,null,null,null,null,null,null,null,null,null,0,0,0,0]
[null,null,null,null,null,null,null,null,null,null,"","",null,null,null,null,null,null,null,null,null,null,null,null,null,null,null,null,null,null,null,null,null,null,null,null,null,null,null,null,null,null,null,null,null,null,null,null,null,null,null,null,null,null,0,0,0,0]
[null,null,null,null,null,null,null,null,null,null,"","",null,null,null,null,null,null,null,null,null,null,null,null,null,null,null,null,null,null,null,null,null,null,null,null,null,null,null,null,null,null,null,null,null,null,null,null,null,null,null,null,null,null,0,0,0,0]
[null,null,null,null,null,null,null,null,null,null,"","",null,null,null,null,null,null,null,null,null,null,null,null,null,null,null,null,null,null,null,null,null,null,null,null,null,null,null,null,null,null,null,null,null,null,null,null,null,null,null,null,null,null,0,0,0,0]
[null,null,null,null,null,null,null,null,null,null,"","",null,null,null,null,null,null,null,null,null,null,null,null,null,null,null,null,null,null,null,null,null,null,null,null,null,null,null,null,null,null,null,null,null,null,null,null,null,null,null,null,null,null,0,0,0,0]
[null,null,null,null,null,null,null,null,null,null,"","",null,null,null,null,null,null,null,null,null,null,null,null,null,null,null,null,null,null,null,null,null,null,null,null,null,null,null,null,null,null,null,null,null,null,null,null,null,null,null,null,null,null,0,0,0,0]
[null,null,null,null,null,null,null,null,null,null,"","",null,null,null,null,null,null,null,null,null,null,null,null,null,null,null,null,null,null,null,null,null,null,null,null,null,null,null,null,null,null,null,null,null,null,null,null,null,null,null,null,null,null,0,0,0,0]
[null,null,null,null,null,null,null,null,null,null,"","",null,null,null,null,null,null,null,null,null,null,null,null,null,null,null,null,null,null,null,null,null,null,null,null,null,null,null,null,null,null,null,null,null,null,null,null,null,null,null,null,null,null,0,0,0,0]
[null,null,null,null,null,null,null,null,null,null,"","",null,null,null,null,null,null,null,null,null,null,null,null,null,null,null,null,null,null,null,null,null,null,null,null,null,null,null,null,null,null,null,null,null,null,null,null,null,null,null,null,null,null,0,0,0,0]
[null,null,null,null,null,null,null,null,null,null,"","",null,null,null,null,null,null,null,null,null,null,null,null,null,null,null,null,null,null,null,null,null,null,null,null,null,null,null,null,null,null,null,null,null,null,null,null,null,null,null,null,null,null,0,0,0,0]
[null,null,null,null,null,null,null,null,null,null,"","",null,null,null,null,null,null,null,null,null,null,null,null,null,null,null,null,null,null,null,null,null,null,null,null,null,null,null,null,null,null,null,null,null,null,null,null,null,null,null,null,null,null,0,0,0,0]
[null,null,null,null,null,null,null,null,null,null,"","",null,null,null,null,null,null,null,null,null,null,null,null,null,null,null,null,null,null,null,null,null,null,null,null,null,null,null,null,null,null,null,null,null,null,null,null,null,null,null,null,null,null,0,0,0,0]
[null,null,null,null,null,null,null,null,null,null,"","",null,null,null,null,null,null,null,null,null,null,null,null,null,null,null,null,null,null,null,null,null,null,null,null,null,null,null,null,null,null,null,null,null,null,null,null,null,null,null,null,null,null,0,0,0,0]
[null,null,null,null,null,null,null,null,null,null,"","",null,null,null,null,null,null,null,null,null,null,null,null,null,null,null,null,null,null,null,null,null,null,null,null,null,null,null,null,null,null,null,null,null,null,null,null,null,null,null,null,null,null,0,0,0,0]
[null,null,null,null,null,null,null,null,null,null,"","",null,null,null,null,null,null,null,null,null,null,null,null,null,null,null,null,null,null,null,null,null,null,null,null,null,null,null,null,null,null,null,null,null,null,null,null,null,null,null,null,null,null,0,0,0,0]
[null,null,null,null,null,null,null,null,null,null,"","",null,null,null,null,null,null,null,null,null,null,null,null,null,null,null,null,null,null,null,null,null,null,null,null,null,null,null,null,null,null,null,null,null,null,null,null,null,null,null,null,null,null,0,0,0,0]
[null,null,null,null,null,null,null,null,null,null,"","",null,null,null,null,null,null,null,null,null,null,null,null,null,null,null,null,null,null,null,null,null,null,null,null,null,null,null,null,null,null,null,null,null,null,null,null,null,null,null,null,null,null,0,0,0,0]
[null,null,null,null,null,null,null,null,null,null,"","",null,null,null,null,null,null,null,null,null,null,null,null,null,null,null,null,null,null,null,null,null,null,null,null,null,null,null,null,null,null,null,null,null,null,null,null,null,null,null,null,null,null,0,0,0,0]
[null,null,null,null,null,null,null,null,null,null,"","",null,null,null,null,null,null,null,null,null,null,null,null,null,null,null,null,null,null,null,null,null,null,null,null,null,null,null,null,null,null,null,null,null,null,null,null,null,null,null,null,null,null,0,0,0,0]
[null,null,null,null,null,null,null,null,null,null,"","",null,null,null,null,null,null,null,null,null,null,null,null,null,null,null,null,null,null,null,null,null,null,null,null,null,null,null,null,null,null,null,null,null,null,null,null,null,null,null,null,null,null,0,0,0,0]
[null,null,null,null,null,null,null,null,null,null,"","",null,null,null,null,null,null,null,null,null,null,null,null,null,null,null,null,null,null,null,null,null,null,null,null,null,null,null,null,null,null,null,null,null,null,null,null,null,null,null,null,null,null,0,0,0,0]
[null,null,null,null,null,null,null,null,null,null,"","",null,null,null,null,null,null,null,null,null,null,null,null,null,null,null,null,null,null,null,null,null,null,null,null,null,null,null,null,null,null,null,null,null,null,null,null,null,null,null,null,null,null,0,0,0,0]
[null,null,null,null,null,null,null,null,null,null,"","",null,null,null,null,null,null,null,null,null,null,null,null,null,null,null,null,null,null,null,null,null,null,null,null,null,null,null,null,null,null,null,null,null,null,null,null,null,null,null,null,null,null,0,0,0,0]
[null,null,null,null,null,null,null,null,null,null,"","",null,null,null,null,null,null,null,null,null,null,null,null,null,null,null,null,null,null,null,null,null,null,null,null,null,null,null,null,null,null,null,null,null,null,null,null,null,null,null,null,null,null,0,0,0,0]
[null,null,null,null,null,null,null,null,null,null,"","",null,null,null,null,null,null,null,null,null,null,null,null,null,null,null,null,null,null,null,null,null,null,null,null,null,null,null,null,null,null,null,null,null,null,null,null,null,null,null,null,null,null,0,0,0,0]
[null,null,null,null,null,null,null,null,null,null,"","",null,null,null,null,null,null,null,null,null,null,null,null,null,null,null,null,null,null,null,null,null,null,null,null,null,null,null,null,null,null,null,null,null,null,null,null,null,null,null,null,null,null,0,0,0,0]
[null,null,null,null,null,null,null,null,null,null,"","",null,null,null,null,null,null,null,null,null,null,null,null,null,null,null,null,null,null,null,null,null,null,null,null,null,null,null,null,null,null,null,null,null,null,null,null,null,null,null,null,null,null,0,0,0,0]
[null,null,null,null,null,null,null,null,null,null,"","",null,null,null,null,null,null,null,null,null,null,null,null,null,null,null,null,null,null,null,null,null,null,null,null,null,null,null,null,null,null,null,null,null,null,null,null,null,null,null,null,null,null,0,0,0,0]
[null,null,null,null,null,null,null,null,null,null,"","",null,null,null,null,null,null,null,null,null,null,null,null,null,null,null,null,null,null,null,null,null,null,null,null,null,null,null,null,null,null,null,null,null,null,null,null,null,null,null,null,null,null,0,0,0,0]
[null,null,null,null,null,null,null,null,null,null,"","",null,null,null,null,null,null,null,null,null,null,null,null,null,null,null,null,null,null,null,null,null,null,null,null,null,null,null,null,null,null,null,null,null,null,null,null,null,null,null,null,null,null,0,0,0,0]
[null,null,null,null,null,null,null,null,null,null,"","",null,null,null,null,null,null,null,null,null,null,null,null,null,null,null,null,null,null,null,null,null,null,null,null,null,null,null,null,null,null,null,null,null,null,null,null,null,null,null,null,null,null,0,0,0,0]
[null,null,null,null,null,null,null,null,null,null,"","",null,null,null,null,null,null,null,null,null,null,null,null,null,null,null,null,null,null,null,null,null,null,null,null,null,null,null,null,null,null,null,null,null,null,null,null,null,null,null,null,null,null,0,0,0,0]
[null,null,null,null,null,null,null,null,null,null,"","",null,null,null,null,null,null,null,null,null,null,null,null,null,null,null,null,null,null,null,null,null,null,null,null,null,null,null,null,null,null,null,null,null,null,null,null,null,null,null,null,null,null,0,0,0,0]
[null,null,null,null,null,null,null,null,null,null,"","",null,null,null,null,null,null,null,null,null,null,null,null,null,null,null,null,null,null,null,null,null,null,null,null,null,null,null,null,null,null,null,null,null,null,null,null,null,null,null,null,null,null,0,0,0,0]
[null,null,null,null,null,null,null,null,null,null,"","",null,null,null,null,null,null,null,null,null,null,null,null,null,null,null,null,null,null,null,null,null,null,null,null,null,null,null,null,null,null,null,null,null,null,null,null,null,null,null,null,null,null,0,0,0,0]
[null,null,null,null,null,null,null,null,null,null,"","",null,null,null,null,null,null,null,null,null,null,null,null,null,null,null,null,null,null,null,null,null,null,null,null,null,null,null,null,null,null,null,null,null,null,null,null,null,null,null,null,null,null,0,0,0,0]
[null,null,null,null,null,null,null,null,null,null,"","",null,null,null,null,null,null,null,null,null,null,null,null,null,null,null,null,null,null,null,null,null,null,null,null,null,null,null,null,null,null,null,null,null,null,null,null,null,null,null,null,null,null,0,0,0,0]
[null,null,null,null,null,null,null,null,null,null,"","",null,null,null,null,null,null,null,null,null,null,null,null,null,null,null,null,null,null,null,null,null,null,null,null,null,null,null,null,null,null,null,null,null,null,null,null,null,null,null,null,null,null,0,0,0,0]
[null,null,null,null,null,null,null,null,null,null,"","",null,null,null,null,null,null,null,null,null,null,null,null,null,null,null,null,null,null,null,null,null,null,null,null,null,null,null,null,null,null,null,null,null,null,null,null,null,null,null,null,null,null,0,0,0,0]
[null,null,null,null,null,null,null,null,null,null,"","",null,null,null,null,null,null,null,null,null,null,null,null,null,null,null,null,null,null,null,null,null,null,null,null,null,null,null,null,null,null,null,null,null,null,null,null,null,null,null,null,null,null,0,0,0,0]
[null,null,null,null,null,null,null,null,null,null,"","",null,null,null,null,null,null,null,null,null,null,null,null,null,null,null,null,null,null,null,null,null,null,null,null,null,null,null,null,null,null,null,null,null,null,null,null,null,null,null,null,null,null,0,0,0,0]
[null,null,null,null,null,null,null,null,null,null,"","",null,null,null,null,null,null,null,null,null,null,null,null,null,null,null,null,null,null,null,null,null,null,null,null,null,null,null,null,null,null,null,null,null,null,null,null,null,null,null,null,null,null,0,0,0,0]
[null,null,null,null,null,null,null,null,null,null,"","",null,null,null,null,null,null,null,null,null,null,null,null,null,null,null,null,null,null,null,null,null,null,null,null,null,null,null,null,null,null,null,null,null,null,null,null,null,null,null,null,null,null,0,0,0,0]
[null,null,null,null,null,null,null,null,null,null,"","",null,null,null,null,null,null,null,null,null,null,null,null,null,null,null,null,null,null,null,null,null,null,null,null,null,null,null,null,null,null,null,null,null,null,null,null,null,null,null,null,null,null,0,0,0,0]
[null,null,null,null,null,null,null,null,null,null,"","",null,null,null,null,null,null,null,null,null,null,null,null,null,null,null,null,null,null,null,null,null,null,null,null,null,null,null,null,null,null,null,null,null,null,null,null,null,null,null,null,null,null,{"$f":"SUM(N194:P194,R194:T194,V194:X194,Z194:AB194,AD194:AF194,AH194:AJ194,AL194:AN194,AP194:AR194,AT194:AV194,AX194:AZ194)","v":0},{"$f":"COUNT(N194:P194,R194:T194,V194:X194,Z194:AB194,AD194:AF194,AH194:AJ194,AL194:AN194,AP194:AR194,AT194:AV194,AX194:AZ194)","v":0},{"$f":"MAX(N194:P194,R194:T194,V194:X194,Z194:AB194,AD194:AF194,AH194:AJ194,AL194:AN194,AP194:AR194,AT194:AV194,AX194:AZ194)","v":0},{"$f":"MAX(Q194,U194,Y194,AC194,AG194,AK194,AO194,AS194,AW194,BA194)","v":0}]
[null,null,null,null,null,null,null,null,null,null,"","",null,null,null,null,null,null,null,null,null,null,null,null,null,null,null,null,null,null,null,null,null,null,null,null,null,null,null,null,null,null,null,null,null,null,null,null,null,null,null,null,null,null,0,0,0,0]
[null,null,null,null,null,null,null,null,null,null,"","",null,null,null,null,null,null,null,null,null,null,null,null,null,null,null,null,null,null,null,null,null,null,null,null,null,null,null,null,null,null,null,null,null,null,null,null,null,null,null,null,null,null,0,0,0,0]
[null,null,null,null,null,null,null,null,null,null,"","",null,null,null,null,null,null,null,null,null,null,null,null,null,null,null,null,null,null,null,null,null,null,null,null,null,null,null,null,null,null,null,null,null,null,null,null,null,null,null,null,null,null,0,0,0,0]
[null,null,null,null,null,null,null,null,null,null,"","",null,null,null,null,null,null,null,null,null,null,null,null,null,null,null,null,null,null,null,null,null,null,null,null,null,null,null,null,null,null,null,null,null,null,null,null,null,null,null,null,null,null,0,0,0,0]
[null,null,null,null,null,null,null,null,null,null,"","",null,null,null,null,null,null,null,null,null,null,null,null,null,null,null,null,null,null,null,null,null,null,null,null,null,null,null,null,null,null,null,null,null,null,null,null,null,null,null,null,null,null,0,0,0,0]
[null,null,null,null,null,null,null,null,null,null,"","",null,null,null,null,null,null,null,null,null,null,null,null,null,null,null,null,null,null,null,null,null,null,null,null,null,null,null,null,null,null,null,null,null,null,null,null,null,null,null,null,null,null,0,0,0,0]
[null,null,null,null,null,null,null,null,null,null,"","",null,null,null,null,null,null,null,null,null,null,null,null,null,null,null,null,null,null,null,null,null,null,null,null,null,null,null,null,null,null,null,null,null,null,null,null,null,null,null,null,null,null,0,0,0,0]
[null,null,null,null,null,null,null,null,null,null,"","",null,null,null,null,null,null,null,null,null,null,null,null,null,null,null,null,null,null,null,null,null,null,null,null,null,null,null,null,null,null,null,null,null,null,null,null,null,null,null,null,null,null,0,0,0,0]
[null,null,null,null,null,null,null,null,null,null,"","",null,null,null,null,null,null,null,null,null,null,null,null,null,null,null,null,null,null,null,null,null,null,null,null,null,null,null,null,null,null,null,null,null,null,null,null,null,null,null,null,null,null,0,0,0,0]
[null,null,null,null,null,null,null,null,null,null,"","",null,null,null,null,null,null,null,null,null,null,null,null,null,null,null,null,null,null,null,null,null,null,null,null,null,null,null,null,null,null,null,null,null,null,null,null,null,null,null,null,null,null,0,0,0,0]
[null,null,null,null,null,null,null,null,null,null,"","",null,null,null,null,null,null,null,null,null,null,null,null,null,null,null,null,null,null,null,null,null,null,null,null,null,null,null,null,null,null,null,null,null,null,null,null,null,null,null,null,null,null,0,0,0,0]
[null,null,null,null,null,null,null,null,null,null,"","",null,null,null,null,null,null,null,null,null,null,null,null,null,null,null,null,null,null,null,null,null,null,null,null,null,null,null,null,null,null,null,null,null,null,null,null,null,null,null,null,null,null,0,0,0,0]
[null,null,null,null,null,null,null,null,null,null,"","",null,null,null,null,null,null,null,null,null,null,null,null,null,null,null,null,null,null,null,null,null,null,null,null,null,null,null,null,null,null,null,null,null,null,null,null,null,null,null,null,null,null,0,0,0,0]
[null,null,null,null,null,null,null,null,null,null,"","",null,null,null,null,null,null,null,null,null,null,null,null,null,null,null,null,null,null,null,null,null,null,null,null,null,null,null,null,null,null,null,null,null,null,null,null,null,null,null,null,null,null,0,0,0,0]
[null,null,null,null,null,null,null,null,null,null,"","",null,null,null,null,null,null,null,null,null,null,null,null,null,null,null,null,null,null,null,null,null,null,null,null,null,null,null,null,null,null,null,null,null,null,null,null,null,null,null,null,null,null,0,0,0,0]
[null,null,null,null,null,null,null,null,null,null,"","",null,null,null,null,null,null,null,null,null,null,null,null,null,null,null,null,null,null,null,null,null,null,null,null,null,null,null,null,null,null,null,null,null,null,null,null,null,null,null,null,null,null,0,0,0,0]
[null,null,null,null,null,null,null,null,null,null,"","",null,null,null,null,null,null,null,null,null,null,null,null,null,null,null,null,null,null,null,null,null,null,null,null,null,null,null,null,null,null,null,null,null,null,null,null,null,null,null,null,null,null,0,0,0,0]
[null,null,null,null,null,null,null,null,null,null,"","",null,null,null,null,null,null,null,null,null,null,null,null,null,null,null,null,null,null,null,null,null,null,null,null,null,null,null,null,null,null,null,null,null,null,null,null,null,null,null,null,null,null,0,0,0,0]
[null,null,null,null,null,null,null,null,null,null,"","",null,null,null,null,null,null,null,null,null,null,null,null,null,null,null,null,null,null,null,null,null,null,null,null,null,null,null,null,null,null,null,null,null,null,null,null,null,null,null,null,null,null,0,0,0,0]
[null,null,null,null,null,null,null,null,null,null,"","",null,null,null,null,null,null,null,null,null,null,null,null,null,null,null,null,null,null,null,null,null,null,null,null,null,null,null,null,null,null,null,null,null,null,null,null,null,null,null,null,null,null,0,0,0,0]
[null,null,null,null,null,null,null,null,null,null,"","",null,null,null,null,null,null,null,null,null,null,null,null,null,null,null,null,null,null,null,null,null,null,null,null,null,null,null,null,null,null,null,null,null,null,null,null,null,null,null,null,null,null,0,0,0,0]
[null,null,null,null,null,null,null,null,null,null,"","",null,null,null,null,null,null,null,null,null,null,null,null,null,null,null,null,null,null,null,null,null,null,null,null,null,null,null,null,null,null,null,null,null,null,null,null,null,null,null,null,null,null,0,0,0,0]
[null,null,null,null,null,null,null,null,null,null,"","",null,null,null,null,null,null,null,null,null,null,null,null,null,null,null,null,null,null,null,null,null,null,null,null,null,null,null,null,null,null,null,null,null,null,null,null,null,null,null,null,null,null,0,0,0,0]
[null,null,null,null,null,null,null,null,null,null,"","",null,null,null,null,null,null,null,null,null,null,null,null,null,null,null,null,null,null,null,null,null,null,null,null,null,null,null,null,null,null,null,null,null,null,null,null,null,null,null,null,null,null,0,0,0,0]
[null,null,null,null,null,null,null,null,null,null,"","",null,null,null,null,null,null,null,null,null,null,null,null,null,null,null,null,null,null,null,null,null,null,null,null,null,null,null,null,null,null,null,null,null,null,null,null,null,null,null,null,null,null,0,0,0,0]
[null,null,null,null,null,null,null,null,null,null,"","",null,null,null,null,null,null,null,null,null,null,null,null,null,null,null,null,null,null,null,null,null,null,null,null,null,null,null,null,null,null,null,null,null,null,null,null,null,null,null,null,null,null,0,0,0,0]
[null,null,null,null,null,null,null,null,null,null,"","",null,null,null,null,null,null,null,null,null,null,null,null,null,null,null,null,null,null,null,null,null,null,null,null,null,null,null,null,null,null,null,null,null,null,null,null,null,null,null,null,null,null,0,0,0,0]
[null,null,null,null,null,null,null,null,null,null,"","",null,null,null,null,null,null,null,null,null,null,null,null,null,null,null,null,null,null,null,null,null,null,null,null,null,null,null,null,null,null,null,null,null,null,null,null,null,null,null,null,null,null,0,0,0,0]
[null,null,null,null,null,null,null,null,null,null,"","",null,null,null,null,null,null,null,null,null,null,null,null,null,null,null,null,null,null,null,null,null,null,null,null,null,null,null,null,null,null,null,null,null,null,null,null,null,null,null,null,null,null,0,0,0,0]
[null,null,null,null,null,null,null,null,null,null,"","",null,null,null,null,null,null,null,null,null,null,null,null,null,null,null,null,null,null,null,null,null,null,null,null,null,null,null,null,null,null,null,null,null,null,null,null,null,null,null,null,null,null,0,0,0,0]
[null,null,null,null,null,null,null,null,null,null,"","",null,null,null,null,null,null,null,null,null,null,null,null,null,null,null,null,null,null,null,null,null,null,null,null,null,null,null,null,null,null,null,null,null,null,null,null,null,null,null,null,null,null,0,0,0,0]
[null,null,null,null,null,null,null,null,null,null,"","",null,null,null,null,null,null,null,null,null,null,null,null,null,null,null,null,null,null,null,null,null,null,null,null,null,null,null,null,null,null,null,null,null,null,null,null,null,null,null,null,null,null,0,0,0,0]
[null,null,null,null,null,null,null,null,null,null,"","",null,null,null,null,null,null,null,null,null,null,null,null,null,null,null,null,null,null,null,null,null,null,null,null,null,null,null,null,null,null,null,null,null,null,null,null,null,null,null,null,null,null,0,0,0,0]
[null,null,null,null,null,null,null,null,null,null,"","",null,null,null,null,null,null,null,null,null,null,null,null,null,null,null,null,null,null,null,null,null,null,null,null,null,null,null,null,null,null,null,null,null,null,null,null,null,null,null,null,null,null,0,0,0,0]
[null,null,null,null,null,null,null,null,null,null,"","",null,null,null,null,null,null,null,null,null,null,null,null,null,null,null,null,null,null,null,null,null,null,null,null,null,null,null,null,null,null,null,null,null,null,null,null,null,null,null,null,null,null,0,0,0,0]
[null,null,null,null,null,null,null,null,null,null,"","",null,null,null,null,null,null,null,null,null,null,null,null,null,null,null,null,null,null,null,null,null,null,null,null,null,null,null,null,null,null,null,null,null,null,null,null,null,null,null,null,null,null,0,0,0,0]
[null,null,null,null,null,null,null,null,null,null,"","",null,null,null,null,null,null,null,null,null,null,null,null,null,null,null,null,null,null,null,null,null,null,null,null,null,null,null,null,null,null,null,null,null,null,null,null,null,null,null,null,null,null,0,0,0,0]
[null,null,null,null,null,null,null,null,null,null,"","",null,null,null,null,null,null,null,null,null,null,null,null,null,null,null,null,null,null,null,null,null,null,null,null,null,null,null,null,null,null,null,null,null,null,null,null,null,null,null,null,null,null,0,0,0,0]
[null,null,null,null,null,null,null,null,null,null,"","",null,null,null,null,null,null,null,null,null,null,null,null,null,null,null,null,null,null,null,null,null,null,null,null,null,null,null,null,null,null,null,null,null,null,null,null,null,null,null,null,null,null,0,0,0,0]
[null,null,null,null,null,null,null,null,null,null,"","",null,null,null,null,null,null,null,null,null,null,null,null,null,null,null,null,null,null,null,null,null,null,null,null,null,null,null,null,null,null,null,null,null,null,null,null,null,null,null,null,null,null,0,0,0,0]
[null,null,null,null,null,null,null,null,null,null,"","",null,null,null,null,null,null,null,null,null,null,null,null,null,null,null,null,null,null,null,null,null,null,null,null,null,null,null,null,null,null,null,null,null,null,null,null,null,null,null,null,null,null,0,0,0,0]
[null,null,null,null,null,null,null,null,null,null,"","",null,null,null,null,null,null,null,null,null,null,null,null,null,null,null,null,null,null,null,null,null,null,null,null,null,null,null,null,null,null,null,null,null,null,null,null,null,null,null,null,null,null,0,0,0,0]
[null,null,null,null,null,null,null,null,null,null,"","",null,null,null,null,null,null,null,null,null,null,null,null,null,null,null,null,null,null,null,null,null,null,null,null,null,null,null,null,null,null,null,null,null,null,null,null,null,null,null,null,null,null,0,0,0,0]
[null,null,null,null,null,null,null,null,null,null,"","",null,null,null,null,null,null,null,null,null,null,null,null,null,null,null,null,null,null,null,null,null,null,null,null,null,null,null,null,null,null,null,null,null,null,null,null,null,null,null,null,null,null,0,0,0,0]
[null,null,null,null,null,null,null,null,null,null,"","",null,null,null,null,null,null,null,null,null,null,null,null,null,null,null,null,null,null,null,null,null,null,null,null,null,null,null,null,null,null,null,null,null,null,null,null,null,null,null,null,null,null,0,0,0,0]
[null,null,null,null,null,null,null,null,null,null,"","",null,null,null,null,null,null,null,null,null,null,null,null,null,null,null,null,null,null,null,null,null,null,null,null,null,null,null,null,null,null,null,null,null,null,null,null,null,null,null,null,null,null,0,0,0,0]
[null,null,null,null,null,null,null,null,null,null,"","",null,null,null,null,null,null,null,null,null,null,null,null,null,null,null,null,null,null,null,null,null,null,null,null,null,null,null,null,null,null,null,null,null,null,null,null,null,null,null,null,null,null,0,0,0,0]
[null,null,null,null,null,null,null,null,null,null,"","",null,null,null,null,null,null,null,null,null,null,null,null,null,null,null,null,null,null,null,null,null,null,null,null,null,null,null,null,null,null,null,null,null,null,null,null,null,null,null,null,null,null,0,0,0,0]
[null,null,null,null,null,null,null,null,null,null,"","",null,null,null,null,null,null,null,null,null,null,null,null,null,null,null,null,null,null,null,null,null,null,null,null,null,null,null,null,null,null,null,null,null,null,null,null,null,null,null,null,null,null,0,0,0,0]
[null,null,null,null,null,null,null,null,null,null,"","",null,null,null,null,null,null,null,null,null,null,null,null,null,null,null,null,null,null,null,null,null,null,null,null,null,null,null,null,null,null,null,null,null,null,null,null,null,null,null,null,null,null,0,0,0,0]
[null,null,null,null,null,null,null,null,null,null,"","",null,null,null,null,null,null,null,null,null,null,null,null,null,null,null,null,null,null,null,null,null,null,null,null,null,null,null,null,null,null,null,null,null,null,null,null,null,null,null,null,null,null,0,0,0,0]
[null,null,null,null,null,null,null,null,null,null,"","",null,null,null,null,null,null,null,null,null,null,null,null,null,null,null,null,null,null,null,null,null,null,null,null,null,null,null,null,null,null,null,null,null,null,null,null,null,null,null,null,null,null,0,0,0,0]
[null,null,null,null,null,null,null,null,null,null,"","",null,null,null,null,null,null,null,null,null,null,null,null,null,null,null,null,null,null,null,null,null,null,null,null,null,null,null,null,null,null,null,null,null,null,null,null,null,null,null,null,null,null,0,0,0,0]
[null,null,null,null,null,null,null,null,null,null,"","",null,null,null,null,null,null,null,null,null,null,null,null,null,null,null,null,null,null,null,null,null,null,null,null,null,null,null,null,null,null,null,null,null,null,null,null,null,null,null,null,null,null,0,0,0,0]
[null,null,null,null,null,null,null,null,null,null,"","",null,null,null,null,null,null,null,null,null,null,null,null,null,null,null,null,null,null,null,null,null,null,null,null,null,null,null,null,null,null,null,null,null,null,null,null,null,null,null,null,null,null,0,0,0,0]
[null,null,null,null,null,null,null,null,null,null,"","",null,null,null,null,null,null,null,null,null,null,null,null,null,null,null,null,null,null,null,null,null,null,null,null,null,null,null,null,null,null,null,null,null,null,null,null,null,null,null,null,null,null,0,0,0,0]
[null,null,null,null,null,null,null,null,null,null,"","",null,null,null,null,null,null,null,null,null,null,null,null,null,null,null,null,null,null,null,null,null,null,null,null,null,null,null,null,null,null,null,null,null,null,null,null,null,null,null,null,null,null,0,0,0,0]
[null,null,null,null,null,null,null,null,null,null,"","",null,null,null,null,null,null,null,null,null,null,null,null,null,null,null,null,null,null,null,null,null,null,null,null,null,null,null,null,null,null,null,null,null,null,null,null,null,null,null,null,null,null,0,0,0,0]
[null,null,null,null,null,null,null,null,null,null,"","",null,null,null,null,null,null,null,null,null,null,null,null,null,null,null,null,null,null,null,null,null,null,null,null,null,null,null,null,null,null,null,null,null,null,null,null,null,null,null,null,null,null,0,0,0,0]
[null,null,null,null,null,null,null,null,null,null,"","",null,null,null,null,null,null,null,null,null,null,null,null,null,null,null,null,null,null,null,null,null,null,null,null,null,null,null,null,null,null,null,null,null,null,null,null,null,null,null,null,null,null,0,0,0,0]
[null,null,null,null,null,null,null,null,null,null,"","",null,null,null,null,null,null,null,null,null,null,null,null,null,null,null,null,null,null,null,null,null,null,null,null,null,null,null,null,null,null,null,null,null,null,null,null,null,null,null,null,null,null,0,0,0,0]
[null,null,null,null,null,null,null,null,null,null,"","",null,null,null,null,null,null,null,null,null,null,null,null,null,null,null,null,null,null,null,null,null,null,null,null,null,null,null,null,null,null,null,null,null,null,null,null,null,null,null,null,null,null,0,0,0,0]
[null,null,null,null,null,null,null,null,null,null,"","",null,null,null,null,null,null,null,null,null,null,null,null,null,null,null,null,null,null,null,null,null,null,null,null,null,null,null,null,null,null,null,null,null,null,null,null,null,null,null,null,null,null,0,0,0,0]
[null,null,null,null,null,null,null,null,null,null,"","",null,null,null,null,null,null,null,null,null,null,null,null,null,null,null,null,null,null,null,null,null,null,null,null,null,null,null,null,null,null,null,null,null,null,null,null,null,null,null,null,null,null,{"$f":"SUM(N258:P258,R258:T258,V258:X258,Z258:AB258,AD258:AF258,AH258:AJ258,AL258:AN258,AP258:AR258,AT258:AV258,AX258:AZ258)","v":0},{"$f":"COUNT(N258:P258,R258:T258,V258:X258,Z258:AB258,AD258:AF258,AH258:AJ258,AL258:AN258,AP258:AR258,AT258:AV258,AX258:AZ258)","v":0},{"$f":"MAX(N258:P258,R258:T258,V258:X258,Z258:AB258,AD258:AF258,AH258:AJ258,AL258:AN258,AP258:AR258,AT258:AV258,AX258:AZ258)","v":0},{"$f":"MAX(Q258,U258,Y258,AC258,AG258,AK258,AO258,AS258,AW258,BA258)","v":0}]
[null,null,null,null,null,null,null,null,null,null,"","",null,null,null,null,null,null,null,null,null,null,null,null,null,null,null,null,null,null,null,null,null,null,null,null,null,null,null,null,null,null,null,null,null,null,null,null,null,null,null,null,null,null,0,0,0,0]
[null,null,null,null,null,null,null,null,null,null,"","",null,null,null,null,null,null,null,null,null,null,null,null,null,null,null,null,null,null,null,null,null,null,null,null,null,null,null,null,null,null,null,null,null,null,null,null,null,null,null,null,null,null,0,0,0,0]
[null,null,null,null,null,null,null,null,null,null,"","",null,null,null,null,null,null,null,null,null,null,null,null,null,null,null,null,null,null,null,null,null,null,null,null,null,null,null,null,null,null,null,null,null,null,null,null,null,null,null,null,null,null,0,0,0,0]
[null,null,null,null,null,null,null,null,null,null,"","",null,null,null,null,null,null,null,null,null,null,null,null,null,null,null,null,null,null,null,null,null,null,null,null,null,null,null,null,null,null,null,null,null,null,null,null,null,null,null,null,null,null,0,0,0,0]
[null,null,null,null,null,null,null,null,null,null,"","",null,null,null,null,null,null,null,null,null,null,null,null,null,null,null,null,null,null,null,null,null,null,null,null,null,null,null,null,null,null,null,null,null,null,null,null,null,null,null,null,null,null,0,0,0,0]
[null,null,null,null,null,null,null,null,null,null,"","",null,null,null,null,null,null,null,null,null,null,null,null,null,null,null,null,null,null,null,null,null,null,null,null,null,null,null,null,null,null,null,null,null,null,null,null,null,null,null,null,null,null,0,0,0,0]
[null,null,null,null,null,null,null,null,null,null,"","",null,null,null,null,null,null,null,null,null,null,null,null,null,null,null,null,null,null,null,null,null,null,null,null,null,null,null,null,null,null,null,null,null,null,null,null,null,null,null,null,null,null,0,0,0,0]
[null,null,null,null,null,null,null,null,null,null,"","",null,null,null,null,null,null,null,null,null,null,null,null,null,null,null,null,null,null,null,null,null,null,null,null,null,null,null,null,null,null,null,null,null,null,null,null,null,null,null,null,null,null,0,0,0,0]
[null,null,null,null,null,null,null,null,null,null,"","",null,null,null,null,null,null,null,null,null,null,null,null,null,null,null,null,null,null,null,null,null,null,null,null,null,null,null,null,null,null,null,null,null,null,null,null,null,null,null,null,null,null,0,0,0,0]
[null,null,null,null,null,null,null,null,null,null,"","",null,null,null,null,null,null,null,null,null,null,null,null,null,null,null,null,null,null,null,null,null,null,null,null,null,null,null,null,null,null,null,null,null,null,null,null,null,null,null,null,null,null,0,0,0,0]
[null,null,null,null,null,null,null,null,null,null,"","",null,null,null,null,null,null,null,null,null,null,null,null,null,null,null,null,null,null,null,null,null,null,null,null,null,null,null,null,null,null,null,null,null,null,null,null,null,null,null,null,null,null,0,0,0,0]
[null,null,null,null,null,null,null,null,null,null,"","",null,null,null,null,null,null,null,null,null,null,null,null,null,null,null,null,null,null,null,null,null,null,null,null,null,null,null,null,null,null,null,null,null,null,null,null,null,null,null,null,null,null,0,0,0,0]
[null,null,null,null,null,null,null,null,null,null,"","",null,null,null,null,null,null,null,null,null,null,null,null,null,null,null,null,null,null,null,null,null,null,null,null,null,null,null,null,null,null,null,null,null,null,null,null,null,null,null,null,null,null,0,0,0,0]
[null,null,null,null,null,null,null,null,null,null,"","",null,null,null,null,null,null,null,null,null,null,null,null,null,null,null,null,null,null,null,null,null,null,null,null,null,null,null,null,null,null,null,null,null,null,null,null,null,null,null,null,null,null,0,0,0,0]
[null,null,null,null,null,null,null,null,null,null,"","",null,null,null,null,null,null,null,null,null,null,null,null,null,null,null,null,null,null,null,null,null,null,null,null,null,null,null,null,null,null,null,null,null,null,null,null,null,null,null,null,null,null,0,0,0,0]
[null,null,null,null,null,null,null,null,null,null,"","",null,null,null,null,null,null,null,null,null,null,null,null,null,null,null,null,null,null,null,null,null,null,null,null,null,null,null,null,null,null,null,null,null,null,null,null,null,null,null,null,null,null,0,0,0,0]
[null,null,null,null,null,null,null,null,null,null,"","",null,null,null,null,null,null,null,null,null,null,null,null,null,null,null,null,null,null,null,null,null,null,null,null,null,null,null,null,null,null,null,null,null,null,null,null,null,null,null,null,null,null,0,0,0,0]
[null,null,null,null,null,null,null,null,null,null,"","",null,null,null,null,null,null,null,null,null,null,null,null,null,null,null,null,null,null,null,null,null,null,null,null,null,null,null,null,null,null,null,null,null,null,null,null,null,null,null,null,null,null,0,0,0,0]
[null,null,null,null,null,null,null,null,null,null,"","",null,null,null,null,null,null,null,null,null,null,null,null,null,null,null,null,null,null,null,null,null,null,null,null,null,null,null,null,null,null,null,null,null,null,null,null,null,null,null,null,null,null,0,0,0,0]
[null,null,null,null,null,null,null,null,null,null,"","",null,null,null,null,null,null,null,null,null,null,null,null,null,null,null,null,null,null,null,null,null,null,null,null,null,null,null,null,null,null,null,null,null,null,null,null,null,null,null,null,null,null,0,0,0,0]
[null,null,null,null,null,null,null,null,null,null,"","",null,null,null,null,null,null,null,null,null,null,null,null,null,null,null,null,null,null,null,null,null,null,null,null,null,null,null,null,null,null,null,null,null,null,null,null,null,null,null,null,null,null,0,0,0,0]
[null,null,null,null,null,null,null,null,null,null,"","",null,null,null,null,null,null,null,null,null,null,null,null,null,null,null,null,null,null,null,null,null,null,null,null,null,null,null,null,null,null,null,null,null,null,null,null,null,null,null,null,null,null,0,0,0,0]
[null,null,null,null,null,null,null,null,null,null,"","",null,null,null,null,null,null,null,null,null,null,null,null,null,null,null,null,null,null,null,null,null,null,null,null,null,null,null,null,null,null,null,null,null,null,null,null,null,null,null,null,null,null,0,0,0,0]
[null,null,null,null,null,null,null,null,null,null,"","",null,null,null,null,null,null,null,null,null,null,null,null,null,null,null,null,null,null,null,null,null,null,null,null,null,null,null,null,null,null,null,null,null,null,null,null,null,null,null,null,null,null,0,0,0,0]
[null,null,null,null,null,null,null,null,null,null,"","",null,null,null,null,null,null,null,null,null,null,null,null,null,null,null,null,null,null,null,null,null,null,null,null,null,null,null,null,null,null,null,null,null,null,null,null,null,null,null,null,null,null,0,0,0,0]
[null,null,null,null,null,null,null,null,null,null,"","",null,null,null,null,null,null,null,null,null,null,null,null,null,null,null,null,null,null,null,null,null,null,null,null,null,null,null,null,null,null,null,null,null,null,null,null,null,null,null,null,null,null,0,0,0,0]
[null,null,null,null,null,null,null,null,null,null,"","",null,null,null,null,null,null,null,null,null,null,null,null,null,null,null,null,null,null,null,null,null,null,null,null,null,null,null,null,null,null,null,null,null,null,null,null,null,null,null,null,null,null,0,0,0,0]
[null,null,null,null,null,null,null,null,null,null,"","",null,null,null,null,null,null,null,null,null,null,null,null,null,null,null,null,null,null,null,null,null,null,null,null,null,null,null,null,null,null,null,null,null,null,null,null,null,null,null,null,null,null,0,0,0,0]
[null,null,null,null,null,null,null,null,null,null,"","",null,null,null,null,null,null,null,null,null,null,null,null,null,null,null,null,null,null,null,null,null,null,null,null,null,null,null,null,null,null,null,null,null,null,null,null,null,null,null,null,null,null,0,0,0,0]
[null,null,null,null,null,null,null,null,null,null,"","",null,null,null,null,null,null,null,null,null,null,null,null,null,null,null,null,null,null,null,null,null,null,null,null,null,null,null,null,null,null,null,null,null,null,null,null,null,null,null,null,null,null,0,0,0,0]
[null,null,null,null,null,null,null,null,null,null,"","",null,null,null,null,null,null,null,null,null,null,null,null,null,null,null,null,null,null,null,null,null,null,null,null,null,null,null,null,null,null,null,null,null,null,null,null,null,null,null,null,null,null,0,0,0,0]
[null,null,null,null,null,null,null,null,null,null,"","",null,null,null,null,null,null,null,null,null,null,null,null,null,null,null,null,null,null,null,null,null,null,null,null,null,null,null,null,null,null,null,null,null,null,null,null,null,null,null,null,null,null,0,0,0,0]
[null,null,null,null,null,null,null,null,null,null,"","",null,null,null,null,null,null,null,null,null,null,null,null,null,null,null,null,null,null,null,null,null,null,null,null,null,null,null,null,null,null,null,null,null,null,null,null,null,null,null,null,null,null,0,0,0,0]
[null,null,null,null,null,null,null,null,null,null,"","",null,null,null,null,null,null,null,null,null,null,null,null,null,null,null,null,null,null,null,null,null,null,null,null,null,null,null,null,null,null,null,null,null,null,null,null,null,null,null,null,null,null,0,0,0,0]
[null,null,null,null,null,null,null,null,null,null,"","",null,null,null,null,null,null,null,null,null,null,null,null,null,null,null,null,null,null,null,null,null,null,null,null,null,null,null,null,null,null,null,null,null,null,null,null,null,null,null,null,null,null,0,0,0,0]
[null,null,null,null,null,null,null,null,null,null,"","",null,null,null,null,null,null,null,null,null,null,null,null,null,null,null,null,null,null,null,null,null,null,null,null,null,null,null,null,null,null,null,null,null,null,null,null,null,null,null,null,null,null,0,0,0,0]
[null,null,null,null,null,null,null,null,null,null,"","",null,null,null,null,null,null,null,null,null,null,null,null,null,null,null,null,null,null,null,null,null,null,null,null,null,null,null,null,null,null,null,null,null,null,null,null,null,null,null,null,null,null,0,0,0,0]
[null,null,null,null,null,null,null,null,null,null,"","",null,null,null,null,null,null,null,null,null,null,null,null,null,null,null,null,null,null,null,null,null,null,null,null,null,null,null,null,null,null,null,null,null,null,null,null,null,null,null,null,null,null,0,0,0,0]
[null,null,null,null,null,null,null,null,null,null,"","",null,null,null,null,null,null,null,null,null,null,null,null,null,null,null,null,null,null,null,null,null,null,null,null,null,null,null,null,null,null,null,null,null,null,null,null,null,null,null,null,null,null,0,0,0,0]
[null,null,null,null,null,null,null,null,null,null,"","",null,null,null,null,null,null,null,null,null,null,null,null,null,null,null,null,null,null,null,null,null,null,null,null,null,null,null,null,null,null,null,null,null,null,null,null,null,null,null,null,null,null,0,0,0,0]
[null,null,null,null,null,null,null,null,null,null,"","",null,null,null,null,null,null,null,null,null,null,null,null,null,null,null,null,null,null,null,null,null,null,null,null,null,null,null,null,null,null,null,null,null,null,null,null,null,null,null,null,null,null,0,0,0,0]
[null,null,null,null,null,null,null,null,null,null,"","",null,null,null,null,null,null,null,null,null,null,null,null,null,null,null,null,null,null,null,null,null,null,null,null,null,null,null,null,null,null,null,null,null,null,null,null,null,null,null,null,null,null,0,0,0,0]
[null,null,null,null,null,null,null,null,null,null,"","",null,null,null,null,null,null,null,null,null,null,null,null,null,null,null,null,null,null,null,null,null,null,null,null,null,null,null,null,null,null,null,null,null,null,null,null,null,null,null,null,null,null,0,0,0,0]
[null,null,null,null,null,null,null,null,null,null,null,null,null,null,null,null,null,null,null,null,null,null,null,null,null,null,null,null,null,null,null,null,null,null,null,null,null,null,null,null,null,null,null,null,null,null,null,null,null,null,null,null,null,null,0,0,0,0]
[null,null,null,null,null,null,null,null,null,null,null,null,null,null,null,null,null,null,null,null,null,null,null,null,null,null,null,null,null,null,null,null,null,null,null,null,null,null,null,null,null,null,null,null,null,null,null,null,null,null,null,null,null,null,0,0,0,0]
[null,null,null,null,null,null,null,null,null,null,null,null,null,null,null,null,null,null,null,null,null,null,null,null,null,null,null,null,null,null,null,null,null,null,null,null,null,null,null,null,null,null,null,null,null,null,null,null,null,null,null,null,null,null,0,0,0,0]
[null,null,null,null,null,null,null,null,null,null,null,null,null,null,null,null,null,null,null,null,null,null,null,null,null,null,null,null,null,null,null,null,null,null,null,null,null,null,null,null,null,null,null,null,null,null,null,null,null,null,null,null,null,null,0,0,0,0]
[null,null,null,null,null,null,null,null,null,null,null,null,null,null,null,null,null,null,null,null,null,null,null,null,null,null,null,null,null,null,null,null,null,null,null,null,null,null,null,null,null,null,null,null,null,null,null,null,null,null,null,null,null,null,0,0,0,0]
[null,null,null,null,null,null,null,null,null,null,null,null,null,null,null,null,null,null,null,null,null,null,null,null,null,null,null,null,null,null,null,null,null,null,null,null,null,null,null,null,null,null,null,null,null,null,null,null,null,null,null,null,null,null,0,0,0,0]
[null,null,null,null,null,null,null,null,null,null,null,null,null,null,null,null,null,null,null,null,null,null,null,null,null,null,null,null,null,null,null,null,null,null,null,null,null,null,null,null,null,null,null,null,null,null,null,null,null,null,null,null,null,null,0,0,0,0]
[null,null,null,null,null,null,null,null,null,null,null,null,null,null,null,null,null,null,null,null,null,null,null,null,null,null,null,null,null,null,null,null,null,null,null,null,null,null,null,null,null,null,null,null,null,null,null,null,null,null,null,null,null,null,0,0,0,0]
[null,null,null,null,null,null,null,null,null,null,null,null,null,null,null,null,null,null,null,null,null,null,null,null,null,null,null,null,null,null,null,null,null,null,null,null,null,null,null,null,null,null,null,null,null,null,null,null,null,null,null,null,null,null,0,0,0,0]
[null,null,null,null,null,null,null,null,null,null,null,null,null,null,null,null,null,null,null,null,null,null,null,null,null,null,null,null,null,null,null,null,null,null,null,null,null,null,null,null,null,null,null,null,null,null,null,null,null,null,null,null,null,null,0,0,0,0]
[null,null,null,null,null,null,null,null,null,null,null,null,null,null,null,null,null,null,null,null,null,null,null,null,null,null,null,null,null,null,null,null,null,null,null,null,null,null,null,null,null,null,null,null,null,null,null,null,null,null,null,null,null,null,0,0,0,0]
[null,null,null,null,null,null,null,null,null,null,null,null,null,null,null,null,null,null,null,null,null,null,null,null,null,null,null,null,null,null,null,null,null,null,null,null,null,null,null,null,null,null,null,null,null,null,null,null,null,null,null,null,null,null,0,0,0,0]
[null,null,null,null,null,null,null,null,null,null,null,null,null,null,null,null,null,null,null,null,null,null,null,null,null,null,null,null,null,null,null,null,null,null,null,null,null,null,null,null,null,null,null,null,null,null,null,null,null,null,null,null,null,null,0,0,0,0]
[null,null,null,null,null,null,null,null,null,null,null,null,null,null,null,null,null,null,null,null,null,null,null,null,null,null,null,null,null,null,null,null,null,null,null,null,null,null,null,null,null,null,null,null,null,null,null,null,null,null,null,null,null,null,0,0,0,0]
[null,null,null,null,null,null,null,null,null,null,null,null,null,null,null,null,null,null,null,null,null,null,null,null,null,null,null,null,null,null,null,null,null,null,null,null,null,null,null,null,null,null,null,null,null,null,null,null,null,null,null,null,null,null,0,0,0,0]
[null,null,null,null,null,null,null,null,null,null,null,null,null,null,null,null,null,null,null,null,null,null,null,null,null,null,null,null,null,null,null,null,null,null,null,null,null,null,null,null,null,null,null,null,null,null,null,null,null,null,null,null,null,null,0,0,0,0]
[null,null,null,null,null,null,null,null,null,null,null,null,null,null,null,null,null,null,null,null,null,null,null,null,null,null,null,null,null,null,null,null,null,null,null,null,null,null,null,null,null,null,null,null,null,null,null,null,null,null,null,null,null,null,0,0,0,0]
[null,null,null,null,null,null,null,null,null,null,null,null,null,null,null,null,null,null,null,null,null,null,null,null,null,null,null,null,null,null,null,null,null,null,null,null,null,null,null,null,null,null,null,null,null,null,null,null,null,null,null,null,null,null,0,0,0,0]
[null,null,null,null,null,null,null,null,null,null,null,null,null,null,null,null,null,null,null,null,null,null,null,null,null,null,null,null,null,null,null,null,null,null,null,null,null,null,null,null,null,null,null,null,null,null,null,null,null,null,null,null,null,null,0,0,0,0]
[null,null,null,null,null,null,null,null,null,null,null,null,null,null,null,null,null,null,null,null,null,null,null,null,null,null,null,null,null,null,null,null,null,null,null,null,null,null,null,null,null,null,null,null,null,null,null,null,null,null,null,null,null,null,0,0,0,0]
[null,null,null,null,null,null,null,null,null,null,null,null,null,null,null,null,null,null,null,null,null,null,null,null,null,null,null,null,null,null,null,null,null,null,null,null,null,null,null,null,null,null,null,null,null,null,null,null,null,null,null,null,null,null,{"$f":"SUM(N322:P322,R322:T322,V322:X322,Z322:AB322,AD322:AF322,AH322:AJ322,AL322:AN322,AP322:AR322,AT322:AV322,AX322:AZ322)","v":0},{"$f":"COUNT(N322:P322,R322:T322,V322:X322,Z322:AB322,AD322:AF322,AH322:AJ322,AL322:AN322,AP322:AR322,AT322:AV322,AX322:AZ322)","v":0},{"$f":"MAX(N322:P322,R322:T322,V322:X322,Z322:AB322,AD322:AF322,AH322:AJ322,AL322:AN322,AP322:AR322,AT322:AV322,AX322:AZ322)","v":0},{"$f":"MAX(Q322,U322,Y322,AC322,AG322,AK322,AO322,AS322,AW322,BA322)","v":0}]
[null,null,null,null,null,null,null,null,null,null,null,null,null,null,null,null,null,null,null,null,null,null,null,null,null,null,null,null,null,null,null,null,null,null,null,null,null,null,null,null,null,null,null,null,null,null,null,null,null,null,null,null,null,null,0,0,0,0]
[null,null,null,null,null,null,null,null,null,null,null,null,null,null,null,null,null,null,null,null,null,null,null,null,null,null,null,null,null,null,null,null,null,null,null,null,null,null,null,null,null,null,null,null,null,null,null,null,null,null,null,null,null,null,0,0,0,0]
[null,null,null,null,null,null,null,null,null,null,null,null,null,null,null,null,null,null,null,null,null,null,null,null,null,null,null,null,null,null,null,null,null,null,null,null,null,null,null,null,null,null,null,null,null,null,null,null,null,null,null,null,null,null,0,0,0,0]
[null,null,null,null,null,null,null,null,null,null,null,null,null,null,null,null,null,null,null,null,null,null,null,null,null,null,null,null,null,null,null,null,null,null,null,null,null,null,null,null,null,null,null,null,null,null,null,null,null,null,null,null,null,null,0,0,0,0]
[null,null,null,null,null,null,null,null,null,null,null,null,null,null,null,null,null,null,null,null,null,null,null,null,null,null,null,null,null,null,null,null,null,null,null,null,null,null,null,null,null,null,null,null,null,null,null,null,null,null,null,null,null,null,0,0,0,0]
[null,null,null,null,null,null,null,null,null,null,null,null,null,null,null,null,null,null,null,null,null,null,null,null,null,null,null,null,null,null,null,null,null,null,null,null,null,null,null,null,null,null,null,null,null,null,null,null,null,null,null,null,null,null,0,0,0,0]
[null,null,null,null,null,null,null,null,null,null,null,null,null,null,null,null,null,null,null,null,null,null,null,null,null,null,null,null,null,null,null,null,null,null,null,null,null,null,null,null,null,null,null,null,null,null,null,null,null,null,null,null,null,null,0,0,0,0]
[null,null,null,null,null,null,null,null,null,null,null,null,null,null,null,null,null,null,null,null,null,null,null,null,null,null,null,null,null,null,null,null,null,null,null,null,null,null,null,null,null,null,null,null,null,null,null,null,null,null,null,null,null,null,0,0,0,0]
[null,null,null,null,null,null,null,null,null,null,null,null,null,null,null,null,null,null,null,null,null,null,null,null,null,null,null,null,null,null,null,null,null,null,null,null,null,null,null,null,null,null,null,null,null,null,null,null,null,null,null,null,null,null,0,0,0,0]
[null,null,null,null,null,null,null,null,null,null,null,null,null,null,null,null,null,null,null,null,null,null,null,null,null,null,null,null,null,null,null,null,null,null,null,null,null,null,null,null,null,null,null,null,null,null,null,null,null,null,null,null,null,null,0,0,0,0]
[null,null,null,null,null,null,null,null,null,null,null,null,null,null,null,null,null,null,null,null,null,null,null,null,null,null,null,null,null,null,null,null,null,null,null,null,null,null,null,null,null,null,null,null,null,null,null,null,null,null,null,null,null,null,0,0,0,0]
[null,null,null,null,null,null,null,null,null,null,null,null,null,null,null,null,null,null,null,null,null,null,null,null,null,null,null,null,null,null,null,null,null,null,null,null,null,null,null,null,null,null,null,null,null,null,null,null,null,null,null,null,null,null,0,0,0,0]
[null,null,null,null,null,null,null,null,null,null,null,null,null,null,null,null,null,null,null,null,null,null,null,null,null,null,null,null,null,null,null,null,null,null,null,null,null,null,null,null,null,null,null,null,null,null,null,null,null,null,null,null,null,null,0,0,0,0]
[null,null,null,null,null,null,null,null,null,null,null,null,null,null,null,null,null,null,null,null,null,null,null,null,null,null,null,null,null,null,null,null,null,null,null,null,null,null,null,null,null,null,null,null,null,null,null,null,null,null,null,null,null,null,0,0,0,0]
[null,null,null,null,null,null,null,null,null,null,null,null,null,null,null,null,null,null,null,null,null,null,null,null,null,null,null,null,null,null,null,null,null,null,null,null,null,null,null,null,null,null,null,null,null,null,null,null,null,null,null,null,null,null,0,0,0,0]
[null,null,null,null,null,null,null,null,null,null,null,null,null,null,null,null,null,null,null,null,null,null,null,null,null,null,null,null,null,null,null,null,null,null,null,null,null,null,null,null,null,null,null,null,null,null,null,null,null,null,null,null,null,null,0,0,0,0]
[null,null,null,null,null,null,null,null,null,null,null,null,null,null,null,null,null,null,null,null,null,null,null,null,null,null,null,null,null,null,null,null,null,null,null,null,null,null,null,null,null,null,null,null,null,null,null,null,null,null,null,null,null,null,0,0,0,0]
[null,null,null,null,null,null,null,null,null,null,null,null,null,null,null,null,null,null,null,null,null,null,null,null,null,null,null,null,null,null,null,null,null,null,null,null,null,null,null,null,null,null,null,null,null,null,null,null,null,null,null,null,null,null,0,0,0,0]
[null,null,null,null,null,null,null,null,null,null,null,null,null,null,null,null,null,null,null,null,null,null,null,null,null,null,null,null,null,null,null,null,null,null,null,null,null,null,null,null,null,null,null,null,null,null,null,null,null,null,null,null,null,null,0,0,0,0]
[null,null,null,null,null,null,null,null,null,null,null,null,null,null,null,null,null,null,null,null,null,null,null,null,null,null,null,null,null,null,null,null,null,null,null,null,null,null,null,null,null,null,null,null,null,null,null,null,null,null,null,null,null,null,0,0,0,0]
[null,null,null,null,null,null,null,null,null,null,null,null,null,null,null,null,null,null,null,null,null,null,null,null,null,null,null,null,null,null,null,null,null,null,null,null,null,null,null,null,null,null,null,null,null,null,null,null,null,null,null,null,null,null,0,0,0,0]
[null,null,null,null,null,null,null,null,null,null,null,null,null,null,null,null,null,null,null,null,null,null,null,null,null,null,null,null,null,null,null,null,null,null,null,null,null,null,null,null,null,null,null,null,null,null,null,null,null,null,null,null,null,null,0,0,0,0]
[null,null,null,null,null,null,null,null,null,null,null,null,null,null,null,null,null,null,null,null,null,null,null,null,null,null,null,null,null,null,null,null,null,null,null,null,null,null,null,null,null,null,null,null,null,null,null,null,null,null,null,null,null,null,0,0,0,0]
[null,null,null,null,null,null,null,null,null,null,null,null,null,null,null,null,null,null,null,null,null,null,null,null,null,null,null,null,null,null,null,null,null,null,null,null,null,null,null,null,null,null,null,null,null,null,null,null,null,null,null,null,null,null,0,0,0,0]
[null,null,null,null,null,null,null,null,null,null,null,null,null,null,null,null,null,null,null,null,null,null,null,null,null,null,null,null,null,null,null,null,null,null,null,null,null,null,null,null,null,null,null,null,null,null,null,null,null,null,null,null,null,null,0,0,0,0]
[null,null,null,null,null,null,null,null,null,null,null,null,null,null,null,null,null,null,null,null,null,null,null,null,null,null,null,null,null,null,null,null,null,null,null,null,null,null,null,null,null,null,null,null,null,null,null,null,null,null,null,null,null,null,0,0,0,0]
[null,null,null,null,null,null,null,null,null,null,null,null,null,null,null,null,null,null,null,null,null,null,null,null,null,null,null,null,null,null,null,null,null,null,null,null,null,null,null,null,null,null,null,null,null,null,null,null,null,null,null,null,null,null,0,0,0,0]
[null,null,null,null,null,null,null,null,null,null,null,null,null,null,null,null,null,null,null,null,null,null,null,null,null,null,null,null,null,null,null,null,null,null,null,null,null,null,null,null,null,null,null,null,null,null,null,null,null,null,null,null,null,null,0,0,0,0]
[null,null,null,null,null,null,null,null,null,null,null,null,null,null,null,null,null,null,null,null,null,null,null,null,null,null,null,null,null,null,null,null,null,null,null,null,null,null,null,null,null,null,null,null,null,null,null,null,null,null,null,null,null,null,0,0,0,0]
[null,null,null,null,null,null,null,null,null,null,null,null,null,null,null,null,null,null,null,null,null,null,null,null,null,null,null,null,null,null,null,null,null,null,null,null,null,null,null,null,null,null,null,null,null,null,null,null,null,null,null,null,null,null,0,0,0,0]
[null,null,null,null,null,null,null,null,null,null,null,null,null,null,null,null,null,null,null,null,null,null,null,null,null,null,null,null,null,null,null,null,null,null,null,null,null,null,null,null,null,null,null,null,null,null,null,null,null,null,null,null,null,null,0,0,0,0]
[null,null,null,null,null,null,null,null,null,null,null,null,null,null,null,null,null,null,null,null,null,null,null,null,null,null,null,null,null,null,null,null,null,null,null,null,null,null,null,null,null,null,null,null,null,null,null,null,null,null,null,null,null,null,0,0,0,0]
[null,null,null,null,null,null,null,null,null,null,null,null,null,null,null,null,null,null,null,null,null,null,null,null,null,null,null,null,null,null,null,null,null,null,null,null,null,null,null,null,null,null,null,null,null,null,null,null,null,null,null,null,null,null,0,0,0,0]
[null,null,null,null,null,null,null,null,null,null,null,null,null,null,null,null,null,null,null,null,null,null,null,null,null,null,null,null,null,null,null,null,null,null,null,null,null,null,null,null,null,null,null,null,null,null,null,null,null,null,null,null,null,null,0,0,0,0]
[null,null,null,null,null,null,null,null,null,null,null,null,null,null,null,null,null,null,null,null,null,null,null,null,null,null,null,null,null,null,null,null,null,null,null,null,null,null,null,null,null,null,null,null,null,null,null,null,null,null,null,null,null,null,0,0,0,0]
[null,null,null,null,null,null,null,null,null,null,null,null,null,null,null,null,null,null,null,null,null,null,null,null,null,null,null,null,null,null,null,null,null,null,null,null,null,null,null,null,null,null,null,null,null,null,null,null,null,null,null,null,null,null,0,0,0,0]
[null,null,null,null,null,null,null,null,null,null,null,null,null,null,null,null,null,null,null,null,null,null,null,null,null,null,null,null,null,null,null,null,null,null,null,null,null,null,null,null,null,null,null,null,null,null,null,null,null,null,null,null,null,null,0,0,0,0]
[null,null,null,null,null,null,null,null,null,null,null,null,null,null,null,null,null,null,null,null,null,null,null,null,null,null,null,null,null,null,null,null,null,null,null,null,null,null,null,null,null,null,null,null,null,null,null,null,null,null,null,null,null,null,0,0,0,0]
[null,null,null,null,null,null,null,null,null,null,null,null,null,null,null,null,null,null,null,null,null,null,null,null,null,null,null,null,null,null,null,null,null,null,null,null,null,null,null,null,null,null,null,null,null,null,null,null,null,null,null,null,null,null,0,0,0,0]
[null,null,null,null,null,null,null,null,null,null,null,null,null,null,null,null,null,null,null,null,null,null,null,null,null,null,null,null,null,null,null,null,null,null,null,null,null,null,null,null,null,null,null,null,null,null,null,null,null,null,null,null,null,null,0,0,0,0]
[null,null,null,null,null,null,null,null,null,null,null,null,null,null,null,null,null,null,null,null,null,null,null,null,null,null,null,null,null,null,null,null,null,null,null,null,null,null,null,null,null,null,null,null,null,null,null,null,null,null,null,null,null,null,0,0,0,0]
[null,null,null,null,null,null,null,null,null,null,null,null,null,null,null,null,null,null,null,null,null,null,null,null,null,null,null,null,null,null,null,null,null,null,null,null,null,null,null,null,null,null,null,null,null,null,null,null,null,null,null,null,null,null,0,0,0,0]
[null,null,null,null,null,null,null,null,null,null,null,null,null,null,null,null,null,null,null,null,null,null,null,null,null,null,null,null,null,null,null,null,null,null,null,null,null,null,null,null,null,null,null,null,null,null,null,null,null,null,null,null,null,null,0,0,0,0]
[null,null,null,null,null,null,null,null,null,null,null,null,null,null,null,null,null,null,null,null,null,null,null,null,null,null,null,null,null,null,null,null,null,null,null,null,null,null,null,null,null,null,null,null,null,null,null,null,null,null,null,null,null,null,0,0,0,0]
[null,null,null,null,null,null,null,null,null,null,null,null,null,null,null,null,null,null,null,null,null,null,null,null,null,null,null,null,null,null,null,null,null,null,null,null,null,null,null,null,null,null,null,null,null,null,null,null,null,null,null,null,null,null,0,0,0,0]
[null,null,null,null,null,null,null,null,null,null,null,null,null,null,null,null,null,null,null,null,null,null,null,null,null,null,null,null,null,null,null,null,null,null,null,null,null,null,null,null,null,null,null,null,null,null,null,null,null,null,null,null,null,null,0,0,0,0]
[null,null,null,null,null,null,null,null,null,null,null,null,null,null,null,null,null,null,null,null,null,null,null,null,null,null,null,null,null,null,null,null,null,null,null,null,null,null,null,null,null,null,null,null,null,null,null,null,null,null,null,null,null,null,0,0,0,0]
[null,null,null,null,null,null,null,null,null,null,null,null,null,null,null,null,null,null,null,null,null,null,null,null,null,null,null,null,null,null,null,null,null,null,null,null,null,null,null,null,null,null,null,null,null,null,null,null,null,null,null,null,null,null,0,0,0,0]
[null,null,null,null,null,null,null,null,null,null,null,null,null,null,null,null,null,null,null,null,null,null,null,null,null,null,null,null,null,null,null,null,null,null,null,null,null,null,null,null,null,null,null,null,null,null,null,null,null,null,null,null,null,null,0,0,0,0]
[null,null,null,null,null,null,null,null,null,null,null,null,null,null,null,null,null,null,null,null,null,null,null,null,null,null,null,null,null,null,null,null,null,null,null,null,null,null,null,null,null,null,null,null,null,null,null,null,null,null,null,null,null,null,0,0,0,0]
[null,null,null,null,null,null,null,null,null,null,null,null,null,null,null,null,null,null,null,null,null,null,null,null,null,null,null,null,null,null,null,null,null,null,null,null,null,null,null,null,null,null,null,null,null,null,null,null,null,null,null,null,null,null,0,0,0,0]
[null,null,null,null,null,null,null,null,null,null,null,null,null,null,null,null,null,null,null,null,null,null,null,null,null,null,null,null,null,null,null,null,null,null,null,null,null,null,null,null,null,null,null,null,null,null,null,null,null,null,null,null,null,null,0,0,0,0]
[null,null,null,null,null,null,null,null,null,null,null,null,null,null,null,null,null,null,null,null,null,null,null,null,null,null,null,null,null,null,null,null,null,null,null,null,null,null,null,null,null,null,null,null,null,null,null,null,null,null,null,null,null,null,0,0,0,0]
[null,null,null,null,null,null,null,null,null,null,null,null,null,null,null,null,null,null,null,null,null,null,null,null,null,null,null,null,null,null,null,null,null,null,null,null,null,null,null,null,null,null,null,null,null,null,null,null,null,null,null,null,null,null,0,0,0,0]
[null,null,null,null,null,null,null,null,null,null,null,null,null,null,null,null,null,null,null,null,null,null,null,null,null,null,null,null,null,null,null,null,null,null,null,null,null,null,null,null,null,null,null,null,null,null,null,null,null,null,null,null,null,null,0,0,0,0]
[null,null,null,null,null,null,null,null,null,null,null,null,null,null,null,null,null,null,null,null,null,null,null,null,null,null,null,null,null,null,null,null,null,null,null,null,null,null,null,null,null,null,null,null,null,null,null,null,null,null,null,null,null,null,0,0,0,0]
[null,null,null,null,null,null,null,null,null,null,null,null,null,null,null,null,null,null,null,null,null,null,null,null,null,null,null,null,null,null,null,null,null,null,null,null,null,null,null,null,null,null,null,null,null,null,null,null,null,null,null,null,null,null,0,0,0,0]
[null,null,null,null,null,null,null,null,null,null,null,null,null,null,null,null,null,null,null,null,null,null,null,null,null,null,null,null,null,null,null,null,null,null,null,null,null,null,null,null,null,null,null,null,null,null,null,null,null,null,null,null,null,null,0,0,0,0]
[null,null,null,null,null,null,null,null,null,null,null,null,null,null,null,null,null,null,null,null,null,null,null,null,null,null,null,null,null,null,null,null,null,null,null,null,null,null,null,null,null,null,null,null,null,null,null,null,null,null,null,null,null,null,0,0,0,0]
[null,null,null,null,null,null,null,null,null,null,null,null,null,null,null,null,null,null,null,null,null,null,null,null,null,null,null,null,null,null,null,null,null,null,null,null,null,null,null,null,null,null,null,null,null,null,null,null,null,null,null,null,null,null,0,0,0,0]
[null,null,null,null,null,null,null,null,null,null,null,null,null,null,null,null,null,null,null,null,null,null,null,null,null,null,null,null,null,null,null,null,null,null,null,null,null,null,null,null,null,null,null,null,null,null,null,null,null,null,null,null,null,null,0,0,0,0]
[null,null,null,null,null,null,null,null,null,null,null,null,null,null,null,null,null,null,null,null,null,null,null,null,null,null,null,null,null,null,null,null,null,null,null,null,null,null,null,null,null,null,null,null,null,null,null,null,null,null,null,null,null,null,0,0,0,0]
[null,null,null,null,null,null,null,null,null,null,null,null,null,null,null,null,null,null,null,null,null,null,null,null,null,null,null,null,null,null,null,null,null,null,null,null,null,null,null,null,null,null,null,null,null,null,null,null,null,null,null,null,null,null,0,0,0,0]
[null,null,null,null,null,null,null,null,null,null,null,null,null,null,null,null,null,null,null,null,null,null,null,null,null,null,null,null,null,null,null,null,null,null,null,null,null,null,null,null,null,null,null,null,null,null,null,null,null,null,null,null,null,null,{"$f":"SUM(N386:P386,R386:T386,V386:X386,Z386:AB386,AD386:AF386,AH386:AJ386,AL386:AN386,AP386:AR386,AT386:AV386,AX386:AZ386)","v":0},{"$f":"COUNT(N386:P386,R386:T386,V386:X386,Z386:AB386,AD386:AF386,AH386:AJ386,AL386:AN386,AP386:AR386,AT386:AV386,AX386:AZ386)","v":0},{"$f":"MAX(N386:P386,R386:T386,V386:X386,Z386:AB386,AD386:AF386,AH386:AJ386,AL386:AN386,AP386:AR386,AT386:AV386,AX386:AZ386)","v":0},{"$f":"MAX(Q386,U386,Y386,AC386,AG386,AK386,AO386,AS386,AW386,BA386)","v":0}]
[null,null,null,null,null,null,null,null,null,null,null,null,null,null,null,null,null,null,null,null,null,null,null,null,null,null,null,null,null,null,null,null,null,null,null,null,null,null,null,null,null,null,null,null,null,null,null,null,null,null,null,null,null,null,0,0,0,0]
[null,null,null,null,null,null,null,null,null,null,null,null,null,null,null,null,null,null,null,null,null,null,null,null,null,null,null,null,null,null,null,null,null,null,null,null,null,null,null,null,null,null,null,null,null,null,null,null,null,null,null,null,null,null,0,0,0,0]
[null,null,null,null,null,null,null,null,null,null,null,null,null,null,null,null,null,null,null,null,null,null,null,null,null,null,null,null,null,null,null,null,null,null,null,null,null,null,null,null,null,null,null,null,null,null,null,null,null,null,null,null,null,null,0,0,0,0]
[null,null,null,null,null,null,null,null,null,null,null,null,null,null,null,null,null,null,null,null,null,null,null,null,null,null,null,null,null,null,null,null,null,null,null,null,null,null,null,null,null,null,null,null,null,null,null,null,null,null,null,null,null,null,0,0,0,0]
[null,null,null,null,null,null,null,null,null,null,null,null,null,null,null,null,null,null,null,null,null,null,null,null,null,null,null,null,null,null,null,null,null,null,null,null,null,null,null,null,null,null,null,null,null,null,null,null,null,null,null,null,null,null,0,0,0,0]
[null,null,null,null,null,null,null,null,null,null,null,null,null,null,null,null,null,null,null,null,null,null,null,null,null,null,null,null,null,null,null,null,null,null,null,null,null,null,null,null,null,null,null,null,null,null,null,null,null,null,null,null,null,null,0,0,0,0]
[null,null,null,null,null,null,null,null,null,null,null,null,null,null,null,null,null,null,null,null,null,null,null,null,null,null,null,null,null,null,null,null,null,null,null,null,null,null,null,null,null,null,null,null,null,null,null,null,null,null,null,null,null,null,0,0,0,0]
[null,null,null,null,null,null,null,null,null,null,null,null,null,null,null,null,null,null,null,null,null,null,null,null,null,null,null,null,null,null,null,null,null,null,null,null,null,null,null,null,null,null,null,null,null,null,null,null,null,null,null,null,null,null,0,0,0,0]
[null,null,null,null,null,null,null,null,null,null,null,null,null,null,null,null,null,null,null,null,null,null,null,null,null,null,null,null,null,null,null,null,null,null,null,null,null,null,null,null,null,null,null,null,null,null,null,null,null,null,null,null,null,null,0,0,0,0]
[null,null,null,null,null,null,null,null,null,null,null,null,null,null,null,null,null,null,null,null,null,null,null,null,null,null,null,null,null,null,null,null,null,null,null,null,null,null,null,null,null,null,null,null,null,null,null,null,null,null,null,null,null,null,0,0,0,0]
[null,null,null,null,null,null,null,null,null,null,null,null,null,null,null,null,null,null,null,null,null,null,null,null,null,null,null,null,null,null,null,null,null,null,null,null,null,null,null,null,null,null,null,null,null,null,null,null,null,null,null,null,null,null,0,0,0,0]
[null,null,null,null,null,null,null,null,null,null,null,null,null,null,null,null,null,null,null,null,null,null,null,null,null,null,null,null,null,null,null,null,null,null,null,null,null,null,null,null,null,null,null,null,null,null,null,null,null,null,null,null,null,null,0,0,0,0]
[null,null,null,null,null,null,null,null,null,null,null,null,null,null,null,null,null,null,null,null,null,null,null,null,null,null,null,null,null,null,null,null,null,null,null,null,null,null,null,null,null,null,null,null,null,null,null,null,null,null,null,null,null,null,0,0,0,0]
[null,null,null,null,null,null,null,null,null,null,null,null,null,null,null,null,null,null,null,null,null,null,null,null,null,null,null,null,null,null,null,null,null,null,null,null,null,null,null,null,null,null,null,null,null,null,null,null,null,null,null,null,null,null,0,0,0,0]

{"sheet":"説明とメニュー","index":5,"n_rows":60,"n_cols":28,"rows_kept":60,"cut":false,"hidden":false,"merged":[[47,5,47,7],[47,8,47,9],[47,11,47,13],[46,2,46,3],[46,5,46,7],[46,8,46,9],[46,11,46,13],[45,2,45,3],[45,5,45,7],[45,8,45,9],[45,11,45,13],[44,5,44,7],[44,8,44,9],[44,11,44,13],[43,2,43,3],[43,5,43,7],[43,8,43,9],[43,11,43,13],[42,2,42,3],[42,5,42,7],[42,8,42,9],[42,11,42,13],[37,5,37,7],[37,8,37,9],[37,11,37,13],[36,2,36,3],[36,5,36,7],[41,2,41,3],[41,5,41,7],[41,8,41,9],[41,11,41,13],[40,2,40,3],[40,5,40,7],[40,8,40,9],[40,11,40,13],[36,8,36,9],[36,11,36,13],[39,2,39,3],[39,5,39,7],[39,8,39,9],[39,11,39,13],[38,2,38,3],[38,5,38,7],[38,8,38,9],[38,11,38,13],[32,5,32,7],[32,8,32,9],[32,11,32,13],[35,5,35,7],[35,8,35,9],[35,11,35,13],[33,5,33,7],[33,8,33,9],[34,2,34,3],[33,11,33,13],[34,5,34,7],[34,8,34,9],[34,11,34,13],[29,5,29,7],[29,8,29,9],[29,11,29,13],[30,2,30,3],[30,5,30,7],[30,8,30,9],[30,11,30,13],[31,5,31,7],[31,8,31,9],[31,11,31,13],[22,1,23,1],[23,5,23,7],[27,5,27,7],[27,8,27,9],[27,11,27,13],[28,2,28,3],[28,5,28,7],[28,8,28,9],[28,11,28,13],[26,2,26,3],[26,5,26,7],[26,8,26,9],[26,11,26,13],[21,5,21,7],[22,5,22,7],[25,2,25,3],[25,5,25,7],[25,8,25,9],[25,11,25,13],[24,2,24,3],[24,5,24,7],[24,8,24,9],[24,11,24,13],[42,1,43,1],[27,1,28,1],[32,1,33,1],[37,1,38,1],[47,1,48,1],[27,2,27,3],[29,2,29,3],[31,2,31,3],[33,2,33,3],[35,2,35,3],[32,2,32,3],[37,2,37,3],[44,2,44,3],[47,2,47,3],[17,2,17,3],[17,8,17,9],[17,5,17,7],[17,11,17,13],[48,3,49,4],[48,7,49,8],[48,6,49,6],[48,5,49,5],[48,2,49,2],[23,2,23,3],[18,2,18,3],[18,5,18,7],[19,2,19,3],[19,5,19,7],[19,8,19,9],[19,11,19,13],[20,2,20,3],[20,5,20,7],[20,8,20,9],[20,11,20,13],[21,8,21,9],[21,11,21,13],[22,2,22,3],[21,2,21,3],[13,15,14,15],[48,9,49,11],[48,12,49,12],[48,13,49,15],[18,8,18,9],[18,11,18,13],[22,8,22,9],[22,11,22,13],[23,8,23,9],[23,11,23,13]]}
[]
[]
[null,null,null,null,null,null,null,null,null,null,null,null,null,null,null,null,null,"個人競技記録報告書を自動作成します。",null,null,null,null,null,"2024/6/24更新版"]
[]
[null,null,null,null,null,"J.  B  個人競技記録報告書",null,null,null,null,null,null,null,null,null,null,null,"このファイルの使い方",null,null,null,null,null,null,"報告書内容"]
[]
[null,null,null,null,null,null,null,null,null,null,null,null,null,null,null,null,null,"（１）「報告書」シートの必要事項を右の欄に入力します",null,null,null,null,null,null,"報告日","2024-06-24"]
[null,null,null,null,null,null,null,null,null,null,null,null,null,null,null,null,null,"　　　入力後「↓の内容を報告書に反映」をクリックしてください。",null,null,null,null,null,null,"会場","トミコシ高島平ボウル ",{"$f":"IFERROR(VLOOKUP(Z8,設定!A23:B70,2,FALSE),\"\")","v":"113-121"}," "]
[null,null,null,null,null,null,null,null,null,null,null,null,null,null,null,null,null,"（２）「データ」シートに会員番号や氏名などの情報を入力してください。",null,null,null,null,null,null,"リーグ・競技会名","令和6年度 東京都ジュニアボウリング選手権大会"]
[null,null,"下記個人競技記録を報告致します。",null,null,null,null,null,null,null,null,null,null,null,null,null,null,"（３）入力が終わったら、下の[印刷]または[ファイル保存]を押してください",null,null,null,null,null,null,"開催年月日（自）","2024-06-23"]
[null,null,null,null,null,null,null,null,null,null,null,null,null,null,null,null,null,null,null,null,null,null,null,null,"開催年月日（至）","2024-06-23"]
[null,null,null,null,null,null,null,null,null,null,null,null,null,null,null,null,null,null,"メニュー",null,null,null,null,null,"記入日","2024-06-24"]
[]
[null,null,null,null,null,null,null,null,null,null,null,null,null,null,null,"１　",null,null,null,null,null,null,null,null,"立会審判員","第１種"]
[null,null,null,null,null,null,null,null,null,null,null,null,null,null,null,null,null,null,null,null,null,null,null,null,"〃　氏名"]
[null,null,null,null,null,null,null,null,null,null,null,null,null,null,null,null,null,null,null,null,null,{"$f":"設定!B11","v":0}]
[]
[null,null,"連盟コード",null,"J.B.C 会員No.","氏　　　　　名",null,null,"ト　ー　タ　ル",null,"ゲーム","Ｈ／Ｇ",null,null,"Ｈ／Ｓ",null,null,null,null,null,null,null,null,null,"種目","個人戦"]
[null,null,null,null,null,null,null,null,null,null,null,null,null,null,null,null,null,null,null,null,"報告書シートを1つのExcelファイル"]
[null,null,null,null,null,null,null,null,null,null,null,null,null,null,null,null,null,null,null,null,"にまとめて保存します。"]
[null,null,null,null,null,null,null,null,null,null,null,null,null,null,null,null,null,null,null,null,"ファイル名はボタンを押すと聞いてきます"]
[]
[null,5,null,null,null,null,null,null,null,null,null,null,null,null,null,null,null,null,null,null,"ファイル名はボタンを押すと聞いてきます"]
[]
[null,null,null,null,null,null,null,null,null,null,null,null,null,null,null,null,null,null,"使用上の注意"]
[null,null,null,null,null,null,null,null,null,null,null,null,null,null,null,null,null,null,"　このファイルは、マクロでシートを作成する仕組みです。"]
[null,null,null,null,null,null,null,null,null,null,null,null,null,null,null,null,null,null,"　「報告書」のレイアウトは一切編集しないでください。"]
[null,10,null,null,null,null,null,null,null,null,null,null,null,null,null,null,null,null,"　編集してしまうと上のボタンを押したときにシートを壊します。"]
[]
[]
[]
[]
[null,15]
[]
[]
[]
[]
[null,20]
[]
[]
[]
[]
[null,25]
[]
[]
[]
[null,null,null,null,null,null,null,null,null,null,null,null,null,null,null,null,null,null,"　編集してしまうと上のボタンを押したときにシートを壊します。"]
[null,30,null,null,null,null,null,null,null,null,null,null,null,null,null,null,null,null,"　「データ」シートに入力した情報は、上のボタンを押すと"]
[null,null,"参加人数",null,null,"総ゲーム数",null,"J.B.C 負担金",null,null,null,null,"確認印",null,null,null,null,null,"　JBC番号をキーに昇順に並べ替えます。"]
[]
[null,null,"○　氏名は日本文字で、J.B.C No.の無い記録は記録されませんので必ず記入する事。"]
[null,null,"○　本報告書の記録はすべてスクラッチの記録を記入すること。",null,null,null,null,null,null,"　リーグ・競技会会長押印欄"]
[null,null,"○　本報告書はリーグ、競技会終了後２週間以内に報告する事。"]
[null,null,"○　本報告書と共に競技会負担金を送金する事。",null,null,null,null,null,null,null,null,null,null,null,null,null,null,null,"JBC殿"]
[null,null,"○　報告書が何枚にもわたる時は登録番号右の欄に記入し、最後の頁に参加人数、",null,null,null,null,null,null,"　立合審判員（第　　種）",null,null,null,null,null,null,null,null,"このファイルをExcelファイルとして受け取った場合、"]
[null,null,"　　総ゲーム、負担金を記入すること。",null,null,null,null,null,null,null,null,null,null,null,null,null,null,null,"「データ」シートにある情報が有効情報です。"]
[null,null,null,null,null,null,null,null,null,null,null,null,null,null,null,null,null,null,"加工・編集する場合は「データ」シート側を利用してください。"]
[]
[null,null,null,null,null,null,null,null,null,null,null,null,null,null,null,null,null,null,"名簿登録人数",null,{"$f":"COUNTA(#REF!)","v":1}]
[null,null,null,null,null,null,null,null,null,null,null,null,null,null,null,null,null,null,"データカウント",null,{"$f":"COUNTA(データ!C2:C1977)","v":0}]

{"sheet":"褒賞申請都連用","index":6,"n_rows":31,"n_cols":39,"rows_kept":31,"cut":false,"hidden":false,"merged":[[7,25,7,38],[7,5,7,18],[17,8,17,9],[17,10,17,18],[17,19,17,27],[16,0,17,7],[16,8,16,9],[16,10,16,18],[16,19,16,27],[14,0,14,7],[14,8,14,9],[14,10,14,18],[14,19,14,27],[13,0,13,7],[13,8,13,9],[13,10,13,18],[12,28,17,29],[15,0,15,7],[15,8,15,9],[15,10,15,18],[15,19,15,27],[13,19,13,27],[12,0,12,7],[12,8,12,9],[12,10,12,18],[12,19,12,27],[11,0,11,9],[11,10,11,18],[11,19,11,27],[8,28,8,38],[10,0,10,9],[10,10,10,27],[10,28,11,38],[4,5,4,21],[6,7,6,18],[3,5,3,21],[3,27,3,38],[1,0,1,38],[2,5,2,21],[2,28,2,38]]}
[]
["褒　賞　用　紙"]
["大会名：",null,null,null,null,{"$f":"説明とメニュー!Z9","v":"令和6年度 東京都ジュニアボウリング選手権大会"},null,null,null,null,null,null,null,null,null,null,null,null,null,null,null,null,null,"会　場：",null,null,null,null,{"$f":"説明とメニュー!Z8","v":"トミコシ高島平ボウル "}]
["氏　名：",null,null,null,null,null,null,null,null,null,null,null,null,null,null,null,null,null,null,null,null,null,null,"JB No.："]
["所　属：",null,null,null,null,null,null,null,null,null,null,null,null,null,null,null,null,null,null,null,null,null,null,null,null,null,null,null,null,"シ ニ ア 50歳以上"]
[null,null,null,null,null,null,null,null,null,null,null,null,null,null,null,null,null,null,null,null,null,null,null,null,null,null,null,null,null,"ジュニア 18歳以下"]
["投球レーン："]
["記録日：",null,null,null,null,{"$f":"説明とメニュー!Z10","v":"2024-06-23"},null,null,null,null,null,null,null,null,null,null,null,null,null,null,"種　目：",null,null,null,null,{"$f":"説明とメニュー!Z18","v":"個人戦"}]
["褒賞の種類：Ｈ/Ｇ ・ Ｈ/Ｓ ・ 特別技能",null,null,null,null,null,null,null,null,null,null,null,null,null,null,null,null,null,null,null,null,null,null,"スコア：",null,null,null,null,277]
[]
["褒　　賞",null,null,null,null,null,null,null,null,null,"優 秀 技 能 賞",null,null,null,null,null,null,null,null,null,null,null,null,null,null,null,null,null,"特 別 技 能 賞"]
["資　　格",null,null,null,null,null,null,null,null,null,"ゲーム",null,null,null,null,null,null,null,null,"シリーズ"]
["ジュニア",null,null,null,null,null,null,null,"男",null,"２６０以上",null,null,null,null,null,null,null,null,"７００以上",null,null,null,null,null,null,null,null,"共\n\n通",null,"オールスペア賞"]
["(18歳未満)",null,null,null,null,null,null,null,"女",null,"２５０以上",null,null,null,null,null,null,null,null,"６５０以上",null,null,null,null,null,null,null,null,null,null,"トリプルキット賞"]
["シ ニ ア",null,null,null,null,null,null,null,"男",null,"２６０以上",null,null,null,null,null,null,null,null,"７００以上",null,null,null,null,null,null,null,null,null,null,"ダッチマン賞"]
["(50歳以上)",null,null,null,null,null,null,null,"女",null,"２５０以上",null,null,null,null,null,null,null,null,"６５０以上",null,null,null,null,null,null,null,null,null,null,"スプリット賞"]
["一　　般",null,null,null,null,null,null,null,"男",null,"２７０以上",null,null,null,null,null,null,null,null,"７５０以上",null,null,null,null,null,null,null,null,null,null,"（７ - １０）"]
[null,null,null,null,null,null,null,null,"女",null,"２６０以上",null,null,null,null,null,null,null,null,"７００以上",null,null,null,null,null,null,null,null,null,null,"（4,7 - 6,10）"]
[]
[null,"立会審判員",null,null,null,null,null,null,"第",null,null,null,"種",null,null,null,null,null,null,null,null,null,null,null,null,null,null,null,null,"印"]
[]
[null,"※ 受賞の対象は、同一年度内において各種１回（300を除く）のみ"]
[null,"　 となります。申請の重複がないようご確認をお願いいたします。"]
[]
[null,"褒賞申請は、本紙とともにスコアシート（コピーも可）を添付してください。"]
[null,"なるべく公認記録報告書とあわせて提出願います。"]
[null,"パーフェクトゲームは別途申請書も添付が必要です。"]
[]
[null,null,"以下は連盟使用欄"]
[null,null,null,"記録確認",null,null,null,null,null,null,null,null,null,null,null,null,null,null,null,null,null,null,null,null,null,"バッジ発送"]
[null,null,null,"褒賞履歴確認",null,null,null,null,null,null,null,null,null,null,null,null,null,null,null,null,null,null,null,null,null,null,null,null,null,null,null,null,null,null,null,null,null,null,"東京都ボウリング連盟"]